{"text_format":"3","workbook":"xlsx","n_sheets":1,"sheets":["Предварительный протокол"],"not_rendered":{"defined_names":1},"read":"whole","date_system":"1900"}

{"sheet":"Предварительный протокол","index":0,"n_rows":379,"n_cols":26,"rows_kept":379}
[]
[null,"№","Код участника","Название ОУ","СНИЛС","Фамилия","Имя","Отчество","Пол","Дата рождения","Участник с ОВЗ","Класс","Класс участия","Аудирование","Чтение","Грамматика","Письмо","устный","Первичный балл","Добавлено по итогам апелляции","Итоговый балл","Макс. балл","Статус","Призер регионального/республиканского этапа прошлого года","Учитель","Место работы учителя"]
[null,1,"265002_20870990381_30","Муниципальное бюджетное общеобразовательное учреждение \"Пушкинский пролицей №78\" города Набережные Челны Республики Татарстан",20870990381,"Красуля","Евгений","Евгеньевич","м","06.06.2013","нет",4,4,10,13,18,19,null,{"$f":"SUM(N3:Q3)","v":60},null,null,67,null,null,"Банникова Наталья Геннадьевна","Муниципальное бюджетное общеобразовательное учреждение \"Пушкинский пролицей №78\" города Набережные Челны Республики Татарстан"]
[null,2,"265001_17685528828_30","Муниципальное автономное общеобразовательное учреждение \"Гимназия №77\" города Набережные Челны Республики Татарстан",17685528828,"Касакин","Матвей","Витальевич","м","05.05.2013","нет",4,4,9,10,17,18,null,54,null,null,67,null,null,"Гатауллина Эльвира Мигразетдиновна","Муниципальное автономное общеобразовательное учреждение \"Гимназия №77\" города Набережные Челны Республики Татарстан"]
[null,3,"265001_17620810962_30","Муниципальное автономное общеобразовательное учреждение \"Гимназия №77\" города Набережные Челны Республики Татарстан",17620810962,"Рычагова","Ева","Евгеньевна","ж","31.03.2013","нет",4,4,8,10,15,20,null,53,null,null,67,null,null,"Токарева Гузель Фаридовна","Муниципальное автономное общеобразовательное учреждение \"Гимназия №77\" города Набережные Челны Республики Татарстан"]
[null,4,"261060_17516236973_30","Муниципальное бюджетное общеобразовательное учреждение «Средняя школа №60» города Набережные Челны Республики Татарстан",17516236973,"Подъячев","Даниэль","Андреевич","м","02.01.2013","нет",4,4,12,8,15,17,null,52,null,null,67,null,null,"Петрова Светлана Александровна","Муниципальное бюджетное общеобразовательное учреждение «Средняя школа №60» города Набережные Челны Республики Татарстан"]
[null,5,"263054_18334730472_30","Муниципальное бюджетное общеобразовательное учреждение \"Гимназия № 54\" города Набережные Челны Республики Татарстан",18334730472,"Хуснутдинова","Элина","Альбертовна","ж","10.11.2013","нет",4,4,6,7,14,20,null,47,null,null,67,null,null,"Зямилова Эльвира Загитовна","Муниципальное бюджетное общеобразовательное учреждение \"Гимназия № 54\" города Набережные Челны Республики Татарстан"]
[null,6,"261022_17516225463_30","Муниципальное бюджетное общеобразовательное учреждение \"Средняя общеобразовательная школа №22\" города Набережные Челны Республики Татарстан",17516225463,"Иванова","Маргарита","Александровна","ж","09.01.2013","нет",4,4,7,5,14,20,null,46,null,null,67,null,null,"Хузина Гульнара Давутовна","Муниципальное бюджетное общеобразовательное учреждение \"Средняя общеобразовательная школа №22\" города Набережные Челны Республики Татарстан"]
[null,7,"261042_17837647527_30","Муниципальное бюджетное общеобразовательное учреждение \"Средняя общеобразовательная школа № 42\" города Набережные Челны Республики Татарстан",17837647527,"Инсапов","Артур","Ленарович","м","2013-01-03","нет",4,4,7,7,15,15,null,44,null,null,67,null,null,"Мингалимова Эльвина Фанисовна","Муниципальное бюджетное общеобразовательное учреждение \"Средняя общеобразовательная школа № 42\" города Набережные Челны Республики Татарстан"]
[null,8,"265002_17463115464_30","Муниципальное бюджетное общеобразовательное учреждение \"Пушкинский пролицей №78\" города Набережные Челны Республики Татарстан",17463115464,"Новокшонова","Арина","Андреевна","ж","24.11.2012","нет",4,4,7,6,12,19,null,44,null,null,67,null,null,"Банникова Наталья Ивановна","Муниципальное бюджетное общеобразовательное учреждение \"Пушкинский пролицей №78\" города Набережные Челны Республики Татарстан"]
[null,9,"261061_17712196173_30","Муниципальное автономное общеобразовательное учреждение \"Гимназия №61\" города Набережные Челны Республики Татарстан",17712196173,"Гюрлер","Лейла","Мехметовна","ж","05.06.2013","нет",4,4,9,7,9,17,null,42,null,null,67,null,null,"Кузнецова Елена Игоревна","Муниципальное автономное общеобразовательное учреждение \"Гимназия №61\" города Набережные Челны Республики Татарстан"]
[null,10,"261033_17670743498_30","Муниципальное бюджетное общеобразовательное учреждение \"Средняя общеобразовательная  школа № 33\"города Набережные Челны Республики Татарстан",17670743498,"Козырев","Максим","Сергеевич","м","05.05.2013","нет",4,4,4,10,11,17,null,42,null,null,67,null,null,"Гизатуллина Гульназ Фаязовна","Муниципальное бюджетное общеобразовательное учреждение \"Средняя общеобразовательная  школа № 33\"города Набережные Челны Республики Татарстан"]
[null,11,"261039_17915306688_30","Муниципальное бюджетное общеобразовательное учреждение \"Средняя общеобразовательная школа №39\" города Набережные Челны Республики ",17915306688,"Мусин","Артур","Дмитриевич","м","22.11.2013","нет",4,4,10,7,9,16,null,42,null,null,67,null,null,"Салахова Мария Владимировна","Муниципальное бюджетное общеобразовательное учреждение \"Средняя общеобразовательная школа №39\" города Набережные Челны Республики "]
[null,12,"261076_17712184368_30","Муниципальное автономное общеобразовательное учреждение \"Гимназия №76\" города Набережные Челны Республики Татарстан",17712184368,"Валеева","Амина","Булатовна","ж","05.06.2013","нет",4,4,9,6,11,15,null,41,null,null,67,null,null,"Сычугова Елена Вячеславовна","Муниципальное автономное общеобразовательное учреждение \"Гимназия №76\" города Набережные Челны Республики Татарстан"]
[null,13,"263029_17449490609_30","Муниципальное бюджетное общеобразовательное учреждение \"Гимназия №29\" города Набережные Челны Республики Татарстан",17449490609,"Диникаева","Айсылу","Ильдаровна","ж","06.11.2012","нет",4,4,8,5,9,19,null,41,null,null,67,null,null,"Абдуллина Ильсияр Ильдусовна","Муниципальное бюджетное общеобразовательное учреждение \"Гимназия №29\" города Набережные Челны Республики Татарстан"]
[null,14,"261061_17495465923_30","Муниципальное автономное общеобразовательное учреждение \"Гимназия №61\" города Набережные Челны Республики Татарстан",17495465923,"Кравченко","Софья","Александровна","ж","20.12.2012","нет",4,4,6,6,9,20,null,41,null,null,67,null,null,"Кириллова Наталья Ивановна","Муниципальное автономное общеобразовательное учреждение \"Гимназия №61\" города Набережные Челны Республики Татарстан"]
[null,15,"265001_17670734396_30","Муниципальное автономное общеобразовательное учреждение \"Гимназия №77\" города Набережные Челны Республики Татарстан",17670734396,"Балычев","Артем","Константинович","м","11.05.2013","нет",4,4,9,9,6,14,null,38,null,null,67,null,null,"Гатауллина Эльвира Мигразетдиновна","Муниципальное автономное общеобразовательное учреждение \"Гимназия №77\" города Набережные Челны Республики Татарстан"]
[null,16,"261076_18890488441_30","Муниципальное автономное общеобразовательное учреждение \"Гимназия №76\" города Набережные Челны Республики Татарстан",18890488441,"Мухаметшин","Тагир","Ильдарович","м","12.11.2013","нет",4,4,3,6,11,18,null,38,null,null,67,null,null,"Потапова Юлия Олеговна","Муниципальное автономное общеобразовательное учреждение \"Гимназия №76\" города Набережные Челны Республики Татарстан"]
[null,17,"261026_17685539934_30","Муниципальное бюджетное общеобразовательное учреждение \"Гимназия №26\" города Набережные Челны Республики Татарстан",17685539934,"Мухаметзянов","Альберт","Ленарович","М","25.04.2013","нет",4,4,7,6,6,18,null,37,null,null,67,null,null,"Саухина Марина Михайловна","Муниципальное бюджетное общеобразовательное учреждение \"Гимназия №26\" города Набережные Челны Республики Татарстан"]
[null,18,"261076_17120083013_30","Муниципальное автономное общеобразовательное учреждение \"Гимназия №76\" города Набережные Челны Республики Татарстан",17491081784,"Ганиева","Камиля","Аликовна","ж","2012-12-08","нет",4,4,8,2,9,16,null,35,null,null,67,null,null,"Кондылева Марина Сергеевна","Муниципальное автономное общеобразовательное учреждение \"Гимназия №76\" города Набережные Челны Республики Татарстан"]
[null,19,"261076_17685532516_30","Муниципальное автономное общеобразовательное учреждение \"Гимназия №76\" города Набережные Челны Республики Татарстан",17685532516,"Кондылев","Богдан","Сергеевич","м","17.05.2013","нет",4,4,9,6,8,10,null,33,null,null,67,null,null,"Кондылева Марина Сергеевна","Муниципальное автономное общеобразовательное учреждение \"Гимназия №76\" города Набережные Челны Республики Татарстан"]
[null,20,"261037_17620803965_30","Муниципальное бюджетное общеобразовательное учреждение \"Средняя общеобразовательная школа №37 с углубленным изучением отдельных предметов\"  города Набережные Челны Республики Татарстан",17620803965,"Шмидт","Владислав","Александрович","м","31.03.2013","нет",4,4,6,6,8,13,null,33,null,null,67,null,null,"Ипатова Анастасия Ивановна","Муниципальное бюджетное общеобразовательное учреждение \"Средняя общеобразовательная школа №37 с углубленным изучением отдельных предметов\"  города Набережные Челны Республики Татарстан"]
[null,21,"261023_17560045663_30","Муниципальное бюджетное общеобразовательное учреждение \"Средняя общеобразовательная школа №23\" города Набережные Челны Республики Татарстан",17560045663,"Меликов","Артур","Айдарович","м","31.01.2013","нет",4,4,8,6,5,13,null,32,null,null,67,null,null,"Кролевецкая Гузель Ильгизовна","Муниципальное бюджетное общеобразовательное учреждение \"Средняя общеобразовательная школа №23\" города Набережные Челны Республики Татарстан"]
[null,22,"261026_17759295234_30","Муниципальное бюджетное общеобразовательное учреждение \"Гимназия №26\" города Набережные Челны Республики Татарстан",17759295234,"Хан","София","Ринатовна","Ж","15.07.2013","нет",4,4,2,3,11,15,null,31,null,null,67,null,null,"Саухина Марина Михайловна","Муниципальное бюджетное общеобразовательное учреждение \"Гимназия №26\" города Набережные Челны Республики Татарстан"]
[null,23,"261076_17698761653_30","Муниципальное автономное общеобразовательное учреждение \"Гимназия №76\" города Набережные Челны Республики Татарстан",17698761653,"Литовченко","Амелия","Евгеньевна","ж","29.05.2013","нет",4,4,7,2,4,16,null,29,null,null,67,null,null,"Кондылева Марина Сергеевна","Муниципальное автономное общеобразовательное учреждение \"Гимназия №76\" города Набережные Челны Республики Татарстан"]
[null,24,"261041_17576100378_30","Муниципальное бюджетное общеобразовательное учреждение \"Средняя общеобразовательная школа №41\"  города Набережные Челны Республики Татарстан",17576100378,"Даутова","Амелия","Альбертовна","ж","25.02.2013","нет",4,4,6,3,2,16,null,27,null,null,67,null,null,"Карпов Тимур Евгеньевич","Муниципальное бюджетное общеобразовательное учреждение \"Средняя общеобразовательная школа №41\"  города Набережные Челны Республики Татарстан"]
[null,25,"261060_17560033252_30","Муниципальное бюджетное общеобразовательное учреждение «Средняя общеобразовательная школа №60»города Набережные Челны Республики Татарстан",17560033252,"Полякова","Дарья","Ефимовна","ж","06.02.2013","нет",4,4,5,3,6,13,null,27,null,null,67,null,null,"Петрова Светлана Александровна","Муниципальное бюджетное общеобразовательное учреждение «Средняя общеобразовательная школа №60»города Набережные Челны Республики Татарстан"]
[null,26,"261064_17830685702_30","Муниципальное автономное общеобразовательное учреждение \"Прогимназия №64\" города Набережные Челны Республики Татарстан ",17830685702,"Шестоперов","Данил","Дмитриевич","м","06.09.2013","нет",4,4,3,5,5,14,null,27,null,null,67,null,null,"Хасаншина Рузиля Мухтаровна","Муниципальное автономное общеобразовательное учреждение \"Прогимназия №64\" города Набережные Челны Республики Татарстан "]
[null,27,"263002_17792719530_30","Муниципальное бюджетное общеобразовательное учреждение \"Гимназия №2 им.М.Вахитова\" города Набережные Челны Республики Татарстан",17792719530,"Набиева","Айсылу","Айнуровна","ж","10.08.2013","нет",4,4,3,6,3,14,null,26,null,null,67,null,null,"Ризванова Гульшат Разифовна","Муниципальное бюджетное общеобразовательное учреждение \"Гимназия №2 им.М.Вахитова\" города Набережные Челны Республики Татарстан"]
[null,28,"261076_17712191264_30","Муниципальное автономное общеобразовательное учреждение  \"Гимназия №76\" города Набережные Челны Республики Татарстан",17712191264,"Максимова","Есения","Юрьевна","ж","11.06.2013","нет",4,4,3,2,7,12,null,24,null,null,67,null,null,"Потапова Юлия Олеговна","Муниципальное автономное общеобразовательное учреждение  \"Гимназия №76\" города Набережные Челны Республики Татарстан"]
[null,29,"261028_17792740622_30","Муниципальное бюджетное общеобразовательное учреждение \"Средняя общеобразовательная школа №28\" города Набережные Челны Республики Татарстан",17792740622,"Мухорина","Валерия","Алексеевна","ж","09.08.2013","нет",4,4,1,5,2,14,null,22,null,null,67,null,null,"Галимарданова Наркиза Глусовна","Муниципальное бюджетное общеобразовательное учреждение \"Средняя общеобразовательная школа №28\" города Набережные Челны Республики Татарстан"]
[null,30,"261010_17780692419_30","Муниципальное бюджетное общеобразовательное учреждение \"Средняя общеобразовательная школа №10\" города Набережные Челны Республики Татарстан",17780692419,"Илалова","Амина","Ришатовна","ж","27.07.2013","нет",4,4,0,3,4,14,null,21,null,null,67,null,null,"Мартынова Светлана Ивановна","Муниципальное бюджетное общеобразовательное учреждение \"Средняя общеобразовательная школа №10\" города Набережные Челны Республики Татарстан"]
[null,31,"261036_17815924606_30","Муниципальное автономное общеобразовательное учреждение  \"Лицей инновационных технологий № 36\" города Набережные Челны Республики Татарстан",17815924606,"Тихонова","Полина","Сергеевна","Ж","02.09.2013","нет",4,4,5,0,1,15,null,21,null,null,67,null,null,"Штанке Татьяна Викторовна","Муниципальное автономное общеобразовательное учреждение  \"Лицей инновационных технологий № 36\" города Набережные Челны Республики Татарстан"]
[null,32,"261036_17496785744_30","Муниципальное автономное общеобразовательное учреждение  \"\"Лицей инновационных технологий № 36\" города Набережные Челны Республики Татарстан",17496785744,"Хабибуллина","Карина","Тимуровна","Ж","19.12.2012","нет",4,4,0,3,1,15,null,19,null,null,67,null,null,"Штанке Татьяна Викторовна","Муниципальное автономное общеобразовательное учреждение  \"\"Лицей инновационных технологий № 36\" города Набережные Челны Республики Татарстан"]
[null,33,"263058_17494028391_30","Муниципальное бюджетное общеобразовательное учреждение \"Средняя общеобразовательная школа №58\" города Набережные Челны Республики ",17494028391,"Мухаметзянов","Тимур","Альбертович","М","02.12.2012","нет",4,4,2,6,8,0,null,{"$f":"SUM(N35:Q35)","v":16},null,null,67,null,null,"Савельева Светлана Алексеевна","Муниципальное бюджетное общеобразовательное учреждение \"Средняя общеобразовательная школа №58\" города Набережные Челны Республики "]
[null,34,"263018_17427109768_30","Муниципальное бюджетное общеобразовательное учреждение \"Средняя общеобразовательная школа №18 с углубленным изучением отдельных предметов\" города Набережные Челны Республики ",17427109768,"Микрюков","Степан","Сергеевич","м","18.10.2012","нет",4,4,6,3,3,0,null,12,null,null,67,null,null,"Гусева Антонина Павловна","Муниципальное бюджетное общеобразовательное учреждение \"Средняя общеобразовательная школа №18 с углубленным изучением отдельных предметов\" города Набережные Челны Республики "]
[null,35,"261005_17550401552_30","Муниципальное бюджетное общеобразовательное учреждение \"Средняя общеобразовательная школа №5\" города Набережные Челны",17550401552,"Рябков","Кирилл","Андреевич","м","25.01.2013","нет",4,4,3,3,3,0,null,9,null,null,67,null,null,"Оськина Елена Евгеньевна","Муниципальное бюджетное общеобразовательное учреждение \"Средняя общеобразовательная школа №5\" города Набережные Челны"]
[null,36,"263052_17685527321_30","Муниципальное бюджетное общеобразовательное учреждение \"Средняя общеобразовательная школа №52\"",17685527321,"Фарваев","Данияр","Айдарович","м","23.05.2013","нет",4,4,2,3,4,0,null,9,null,null,67,null,null,"Фаррахова Эльмира Ирековна","Муниципальное бюджетное общеобразовательное учреждение \"Средняя общеобразовательная школа №52\""]
[null,37,"261011_17550401754_30","Муниципальное бюджетное общеобразовательное учреждение \"Средняя общеобразовательная школа  №11\"",17550401754,"Моисеев","Лев","Евгеньевич","м","31.03.2013","нет",4,4,4,1,2,0,null,7,null,null,67,null,null,"Хайруллина Раушания Рамилевна","Муниципальное бюджетное общеобразовательное учреждение \"Средняя общеобразовательная школа  №11\""]
[null,38,"261057_17434194069_30","Муниципальное бюджетное общеобразовательное учреждение \"Центр образования - Гимназия №57 \"Притяжение\"",17434194069,"Моисеев","Фёдор","Александрович","м","30.10.2012","нет",4,4,1,4,2,0,null,7,null,null,67,null,null,"Бамбурова Марина Загфаровна","Муниципальное бюджетное общеобразовательное учреждение \"Центр образования - Гимназия №57 \"Притяжение\""]
[null,39,"261057_17491086087_30","Муниципальное бюджетное общеобразовательное учреждение \"Центр образования - Гимназия №57 \"Притяжение\"",17491086087,"Прохорова","Варвара","Артёмовна","ж","13.12.2012","нет",4,4,2,2,3,0,null,7,null,null,67,null,null,"Бамбурова Марина Загфаровна","Муниципальное бюджетное общеобразовательное учреждение \"Центр образования - Гимназия №57 \"Притяжение\""]
[null,40,"261035_17815913904_30","Муниципальное автономное общеобразовательное учреждение  \"СОШ №35 с углубленным изучением отдельных предметов\"",17815913904,"Золотова","Софья","Евгеньевна","ж","26.08.2013","нет",4,4,4,0,2,0,null,6,null,null,67,null,null,"Беззубова Юлдуз Шавкатовна","Муниципальное автономное общеобразовательное учреждение  \"СОШ №35 с углубленным изучением отдельных предметов\""]
[null,41,"261022_17744707705_30","Муниципальное бюджетное общеобразовательное учреждение  \"Средняя общеобразовательная школа №22\"  города Набережные Челны Республики  ",17744707705,"Миннеханова","Алия","Рамилевна","ж","04.07.2013","нет",4,4,1,3,2,0,null,6,null,null,67,null,null,"Хузина Гульнара Давутовна","Муниципальное бюджетное общеобразовательное учреждение  \"Средняя общеобразовательная школа №22\"  города Набережные Челны Республики  "]
[null,42,"261040_17988769987_30","Муниципальное автономное общеобразовательное учреждение  \"СОШ №40 с уиоп\"\"Лицей инновационных технологий № 36\" города Набережные Челны Республики ",17988769987,"Фазлыев","Радмир","Игоревич","м","18.01.2014","нет",4,4,0,4,2,0,null,6,null,null,67,null,null,"Ахмадеева Фарида Фаритовна","Муниципальное автономное общеобразовательное учреждение  \"СОШ №40 с уиоп\"\"Лицей инновационных технологий № 36\" города Набережные Челны Республики "]
[null,43,"261056_17804187284_30","Муниципальное автономное общеобразовательное учреждение \"Средняя общеобразовательная школа № 56\" города Набережные Челны Республики ",17804187284,"Хабибрахманова","Самира","Рамилевна","ж","20.08.2013","нет",4,4,0,3,3,0,null,6,null,null,67,null,null,"Бадртдинова Эльвира Ринасовна","Муниципальное автономное общеобразовательное учреждение \"Средняя общеобразовательная школа № 56\" города Набережные Челны Республики "]
[null,44,"261040_17712182263_30","Муниципальное автономное общеобразовательное учреждение  \"Средняя общеобразовательная школа №40 с уиоп\" города Набережные Челны Республики ",17712182263,"Лебедева","Ульяна","Юрьевна","ж","28.05.2013","нет",4,4,1,2,1,0,null,4,null,null,67,null,null,"Ахмадеева Фарида Фаритовна","Муниципальное автономное общеобразовательное учреждение  \"Средняя общеобразовательная школа №40 с уиоп\" города Набережные Челны Республики "]
[null,45,"261027_17670738202_30","Муниципальное бюджетное общеобразовательное учреждение \"Средняя общеобразовательная школа №27\" города Набережные Челны Республики ",17670738202,"Исаева","Анастасия","Юрьевна","ж","08.05.2013","нет",4,4,0,1,2,0,null,3,null,null,67,null,null,"Кузнецова Дарья Андреевна","Муниципальное бюджетное общеобразовательное учреждение \"Средняя общеобразовательная школа №27\" города Набережные Челны Республики "]
[null,46,"261006_17560557690_30","Муниципальное бюджетное общеобразовательное учреждение \"Средняя общеобразовательная школа №6\"города Набережные Челны Республики ",17560557690,"Файзуллина","Алиса","Рустамовна","ж","26.01.2013","нет",4,4,0,1,1,0,null,2,null,null,67,null,null,"Ильина Лилиана Юрьевна","Муниципальное бюджетное общеобразовательное учреждение \"Средняя общеобразовательная школа №6\"города Набережные Челны Республики "]
[null,47,"261026_19229047683_30","Муниципальное бюджетное общеобразовательное учреждение \"Гимназия № 26\" г.Набережные Челны Республики Татарстан",19229047683,"Кабальнов","Даниил","Федорович","м","17.12.2011","нет",6,6,6,5,20,20,null,51,null,null,51,null,"Да","Гимадеева Эльза Николаевна","Муниципальное бюджетное общеобразовательное учреждение \"Гимназия № 26\" г.Набережные Челны Республики Татарстан"]
[null,48,"261060_16547842301_30","Муниципальное бюджетное общеобразовательное учреждение \"Средняя общеобразовательная школа №60\" г.Набережные Челны Республики Татарстан",16547842301,"Андреев","Давид","Вячеславович","м","09.04.2011","нет",6,6,6,5,17,18,null,46,null,null,51,null,null,"Ильдирякова Алёна Вячеславовна","Муниципальное бюджетное общеобразовательное учреждение \"Средняя общеобразовательная школа №60\" г.Набережные Челны Республики Татарстан"]
[null,49,"261040_16653990611_30","Муниципальное автономное общеобразовательное учреждение города Набережные Челны «Средняя общеобразовательная школа №40 с углубленным изучением отдельных предметов»",16653990611,"Ильясова","Эльвина","Эльдаровна","ж","08.06.2011","нет",6,6,4,5,16,19,null,44,null,null,51,null,null,"Фархутдинова Алсу Накиповна","Муниципальное автономное общеобразовательное учреждение города Набережные Челны «Средняя общеобразовательная школа №40 с углубленным изучением отдельных предметов»"]
[null,50,"265001_16929056406_30","Муниципальное автономное общеобразовательное учреждение \"Гимназия №77\" г.Набережные Челны Республики Татарстан",16929056406,"Утробин","Илья","Алексеевич","м","01.11.2011","нет",5,5,6,4,16,18,null,44,null,null,51,null,"Да","Багаутдинова Альбина Марселевна","Муниципальное автономное общеобразовательное учреждение \"Гимназия №77\" г.Набережные Челны Республики Татарстан"]
[null,51,"265001_17142413535_30","Муниципальное автономное общеобразовательное учреждение \"Гимназия №77\" г.Набережные Челны Республики Татарстан",17142413535,"Чугунова","Алиса","Евгеньевна","ж","31.03.2012","нет",5,5,6,5,20,13,null,44,null,null,51,null,"Да","Токарева Гузель Фаридовна","Муниципальное автономное общеобразовательное учреждение \"Гимназия №77\" г.Набережные Челны Республики Татарстан"]
[null,52,"261078_17061144736_30","Муниципальное автономное общеобразовательное учреждение \"Лицей №78 им. А.С. Пушкина\" г.Набережные Челны Республики Татарстан",17061144736,"Бухаров","Артем","Витальевич","м","13.02.2012","нет",5,5,5,5,15,18,null,43,null,null,51,null,null,"Султанова Айгуль Азатовна","Муниципальное автономное общеобразовательное учреждение \"Лицей №78 им. А.С. Пушкина\" г.Набережные Челны Республики Татарстан"]
[null,53,"261078_17678324922_30","Муниципальное автономное общеобразовательное учреждение \"Лицей №78 им. А.С. Пушкина\" г.Набережные Челны Республики Татарстан",17678324922,"Губайдуллина","Гузель","Фаритовна","ж","08.01.2011","нет",6,6,6,4,16,17,null,43,null,null,51,null,"Да","Сарварова Зульфира Флуновна","Муниципальное автономное общеобразовательное учреждение \"Лицей №78 им. А.С. Пушкина\" г.Набережные Челны Республики Татарстан"]
[null,54,"261078_16756635512_30","Муниципальное автономное общеобразовательное учреждение \"Лицей №78 им. А.С. Пушкина\" г.Набережные Челны Республики Татарстан",16756635512,"Мустафина","Самина","Ильясовна","ж","05.06.2011","нет",6,6,5,3,19,15,null,42,null,null,51,null,null,"Сарварова Зульфира Флуновна","Муниципальное автономное общеобразовательное учреждение \"Лицей №78 им. А.С. Пушкина\" г.Набережные Челны Республики Татарстан"]
[null,55,"261076_17164269879_30","Муниципальное автономное общеобразовательное учреждение города Набережные Челны \"Гимназия №76\" г.Набережные Челны Республики Татарстан",17164269879,"Габдуллин","Расул","Фаритович","м","22.03.2011","нет",6,6,4,4,15,18,null,41,null,null,51,null,null,"Потапова Юлия Олеговна","Муниципальное автономное общеобразовательное учреждение города Набережные Челны \"Гимназия №76\" г.Набережные Челны Республики Татарстан"]
[null,56,"261076_19161546678_30","Муниципальное автономное общеобразовательное учреждение города Набережные Челны \"Гимназия №76\"",19161546678,"Захарова","Владислава","Максимовна","ж","05.04.2011","нет",6,6,5,5,14,17,null,41,null,null,51,null,null,"Бушуева Анна Сергеевна","Муниципальное автономное общеобразовательное учреждение города Набережные Челны \"Гимназия №76\""]
[null,57,"261076_16912461879_30","Муниципальное автономное общеобразовательное учреждение города Набережные Челны \"Гимназия №76\" г.Набережные Челны Республики Татарстан",16912461879,"Бахтигареев","Азат","Ленарович","м","16.05.2012","нет",5,5,6,5,20,9,null,40,null,null,51,null,null,"Хакимова Раушания Тахировна","Муниципальное автономное общеобразовательное учреждение города Набережные Челны \"Гимназия №76\" г.Набережные Челны Республики Татарстан"]
[null,58,"261076_16720775884_30","Муниципальное автономное общеобразовательное учреждение города Набережные Челны \"Гимназия №76\" г.Набережные Челны Республики Татарстан",16720775884,"Бушуева","Василиса","Сергеевна","ж","28.06.2011","нет",6,6,3,4,16,17,null,40,null,null,51,null,null,"Бушуева Анна Сергеевна","Муниципальное автономное общеобразовательное учреждение города Набережные Челны \"Гимназия №76\" г.Набережные Челны Республики Татарстан"]
[null,59,"261076_17019183756_30","Муниципальное автономное общеобразовательное учреждение города Набережные Челны \"Гимназия №76\" г.Набережные Челны Республики Татарстан",17019183756,"Мустафин","Данис","Рустамович","м","27.01.2012","нет",5,5,3,3,16,17,null,39,null,null,51,null,"Да","Хакимова Раушания Тахировна","Муниципальное автономное общеобразовательное учреждение города Набережные Челны \"Гимназия №76\" г.Набережные Челны Республики Татарстан"]
[null,60,"261025_17120053610_30","Муниципальное бюджетное общеобразовательное учреждение \"Средняя общеобразовательная школа № 25\" г. Набережные Челны Республики Татарстан",17120053610,"Симонова","Ксения","Александровна","ж","20.03.2012","нет",5,5,2,5,15,16,null,38,null,null,51,null,null,"Елисеева Мария Викторовна","Муниципальное бюджетное общеобразовательное учреждение \"Средняя общеобразовательная школа № 25\" г. Набережные Челны Республики Татарстан"]
[null,61,"261078_17340735056_30","Муниципальное автономное общеобразовательное учреждение \"Лицей №78 им. А.С. Пушкина\" г.Набережные Челны Республики Татарстан",17340735056,"Карманов","Денис","Евгеньевич","м","26.07.2012","нет",5,5,1,4,15,17,null,37,null,null,51,null,"Да","Султанова Айгуль Азатовна","Муниципальное автономное общеобразовательное учреждение \"Лицей №78 им. А.С. Пушкина\" г.Набережные Челны Республики Татарстан"]
[null,62,"261026_16756634712_30","Муниципальное бюджетное общеобразовательное учреждение \"Гимназия № 26\" г.Набережные Челны Республики Татарстан",16756634712,"Колесникова","Екатерина","Николаевна","Ж","03.07.2011","нет",6,6,5,5,14,13,null,37,null,null,51,null,"Да","Мансурова Елена Владимировна","Муниципальное бюджетное общеобразовательное учреждение \"Гимназия № 26\" г.Набережные Челны Республики Татарстан"]
[null,63,"263054_17182351765_30","Муниципальное бюджетное общеобразовательное учреждение \"Гимназия №54\" г. Набережные Челны Республика Татарстан",17182351765,"Бритькова","Алина","Руслановна","ж","29.04.2012","нет",5,5,4,5,16,11,null,36,null,null,51,null,"Да","Закирова Земфира Габдульяновна","Муниципальное бюджетное общеобразовательное учреждение \"Гимназия №54\" г. Набережные Челны Республика Татарстан"]
[null,64,"261010_16896124922_30","Мунициапьное бюджетное общеобразовательное учреждение \"Средняя общеобразовательная школа №10\" г.Набережные Челны Республики Татарстан ",16896124922,"Галимов","Айзат","Айдарович","м","05.10.2011","нет",6,6,5,4,14,13,null,36,null,null,51,null,null,"Мартынова Светлана Ивановна","Мунициапьное бюджетное общеобразовательное учреждение \"Средняя общеобразовательная школа №10\" г.Набережные Челны Республики Татарстан "]
[null,65,"261059_16707421569_30","Муниципальное бюджетное общеобразовательное учреждение «Полилингвальная гимназия № 59 «Адымнар-Чаллы»",16707421569,"Латыпова","Лейла","Маратовна","ж","11.06.2011","нет",6,6,4,3,16,13,null,{"$f":"SUM(N67:Q67)","v":36},null,null,51,null,"Да","Сарварова Ильмира Насиховна","Муниципальное бюджетное общеобразовательное учреждение «Полилингвальная гимназия № 59 «Адымнар-Чаллы»"]
[null,66,"261026_16967063619_30","Муниципальное бюджетное общеобразовательное учреждение \"Гимназия № 26\" г.Набережные Челны Республики Татарстан",16967063619,"Чернышов","Ислам","Ирекович","м","08.12.2011","нет",5,5,4,4,10,18,null,36,null,null,51,null,"Да","Гимадеева Эльза Николаевна","Муниципальное бюджетное общеобразовательное учреждение \"Гимназия № 26\" г.Набережные Челны Республики Татарстан"]
[null,67,"261056_16570879710_30","Муниципальное автономное общеобразовательное учреждение \"Средняя общеобразовательная школа №56\" г.Набережные Челны Республики Татарстан",16570879710,"Веприкова","Эвелина","Сергеевна","ж","05.04.2011","нет",6,6,4,5,15,11,null,35,null,null,51,null,"Да","Дмитриева Елена Анатольевна","Муниципальное автономное общеобразовательное учреждение \"Средняя общеобразовательная школа №56\" г.Набережные Челны Республики Татарстан"]
[null,68,"261076_16684808922_30","Муниципальное автономное общеобразовательное учреждение города Набережные Челны \"Гимназия №76\" г.Набережные Челны Республики Татарстан",16684808922,"Салахов","Радмир","Русланович","м","11.06.2011","нет",6,6,4,5,15,11,null,35,null,null,51,null,null,"Потапова Юлия Олеговна","Муниципальное автономное общеобразовательное учреждение города Набережные Челны \"Гимназия №76\" г.Набережные Челны Республики Татарстан"]
[null,69,"261076_16863724812_30","Муниципальное автономное общеобразовательное учреждение города Набережные Челны \"Гимназия №76\" г.Набережные Челны Республики Татарстан",16863724812,"Банцарев","Платон","Константинович","м","03.10.2011","нет",6,6,4,5,14,11,null,34,null,null,51,null,null,"Куклина Софья Алексеевна","Муниципальное автономное общеобразовательное учреждение города Набережные Челны \"Гимназия №76\" г.Набережные Челны Республики Татарстан"]
[null,70,"261053_16863712199_30","Муниципальное бюджетное общеобразовательное учреждение \"Средняя общеобразовательная школа №53\" г.Набережные Челны Республики Татарстан",16863712199,"Кондратюк","Варвара","Романовна","ж","23.09.2011","нет",6,6,3,2,13,16,null,34,null,null,51,null,null,"Хайбуллина Нурия Ахбаровна","Муниципальное бюджетное общеобразовательное учреждение \"Средняя общеобразовательная школа №53\" г.Набережные Челны Республики Татарстан"]
[null,71,"261076_16863708309_30","Муниципальное автономное общеобразовательное учреждение города Набережные Челны \"Гимназия №76\" г.Набережные Челны Республики Татарстан",16863708309,"Каримова","Регина","Равилевна","ж","22.09.2011","нет",6,6,4,5,6,19,null,34,null,null,51,null,null,"Потапова Юлия Олеговна","Муниципальное автономное общеобразовательное учреждение города Набережные Челны \"Гимназия №76\" г.Набережные Челны Республики Татарстан"]
[null,72,"261057_17397360710_30","Муниципальное бюджетное общеобразовательное учреждение \"Центр образования - Гимназия №57 \"Притяжение\" г.Набережные Челны Республики Татарстан",17397360710,"Ахметзянов","Искандер","Артурович","м","30.09.2012","нет",5,5,3,2,10,18,null,33,null,null,51,null,null,"Саубанова Миляуша Мударисовна","Муниципальное бюджетное общеобразовательное учреждение \"Центр образования - Гимназия №57 \"Притяжение\" г.Набережные Челны Республики Татарстан"]
[null,73,"261026_17316184360_30","Муниципальное бюджетное общеобразовательное учреждение \"Гимназия № 26\" г.Набережные Челны Республики Татарстан",17316184360,"Кожуховский","Григорий","Глебович","м","07.08.2012","нет",5,5,4,2,9,18,null,33,null,null,51,null,"Да","Дулатова Марина Александровна","Муниципальное бюджетное общеобразовательное учреждение \"Гимназия № 26\" г.Набережные Челны Республики Татарстан"]
[null,74,"261076_17053781265_30","Муниципальное автономное общеобразовательное учреждение города Набережные Челны \"Гимназия №76\" г.Набережные Челны Республики Татарстан",17053781265,"Кочурова","Диана","Максимовна","ж","31.01.2012","нет",5,5,4,5,12,12,null,33,null,null,51,null,"Да","Хакимова Раушания Тахировна","Муниципальное автономное общеобразовательное учреждение города Набережные Челны \"Гимназия №76\" г.Набережные Челны Республики Татарстан"]
[null,75,"261041_17196791314_30","Муниципальное бюджетное общеобразовательное учреждение \" Средняя обшеобразовательная школа№ 41\" Набережные челны Республики Татарстан",17196791314,"Галлямов","Амир","Фандусович","м","16.11.2010","нет",6,6,4,2,12,14,null,32,null,null,51,null,null,"Филатова Эльмира Азатовна","Муниципальное бюджетное общеобразовательное учреждение \" Средняя обшеобразовательная школа№ 41\" Набережные челны Республики Татарстан"]
[null,76,"261078_17262948694_30","Муниципальное автономное общеобразовательное учреждение \"Лицей №78 им. А.С. Пушкина\"",17262948694,"Буланов","Ратмир","Андреевич","м","22.06.2012","нет",5,5,1,1,13,16,null,31,null,null,51,null,null,"Шайдуллина Ландыш Миннафиковна","Муниципальное автономное общеобразовательное учреждение \"Лицей №78 им. А.С. Пушкина\""]
[null,77,"265001_16846336604_30","Муниципальное автономное общеобразовательное учреждение \"Гимназия №77\" г.Набережные Челны Республики Татарстан",16846336604,"Андроманова","Елизавета","Максимовна","ж","06.09.2011","нет",6,6,3,3,11,13,null,30,null,null,51,null,null,"Ульянова Альбина Рустемовна","Муниципальное автономное общеобразовательное учреждение \"Гимназия №77\" г.Набережные Челны Республики Татарстан"]
[null,78,"261036_05879817939_30","Муниципальное автономное общеобразовательное учреждение \"Лицей инновационных технологий №36\" г.Набережные Челны Республики Татарстан",5879817939,"Лысков","Иван","Михайлович","м","11.03.2011","нет",6,6,3,3,11,13,null,30,null,null,51,null,null,"Зорина Ирина Витальевна","Муниципальное автономное общеобразовательное учреждение \"Лицей инновационных технологий №36\" г.Набережные Челны Республики Татарстан"]
[null,79,"261078_16520118026_30","Муниципальное автономное общеобразовательное учреждение \"Лицей №78 им. А.С. Пушкина\" г.Набережные Челны Республики Татарстан",16520118026,"Сахапов","Тимур","Рустамович","м","25.03.2011","нет",6,6,2,3,10,15,null,30,null,null,51,null,null,"Сарварова Зульфира Флуновна","Муниципальное автономное общеобразовательное учреждение \"Лицей №78 им. А.С. Пушкина\" г.Набережные Челны Республики Татарстан"]
[null,80,"261078_16547867720_30","Муниципальное автономное общеобразовательное учреждение \"Лицей №78 им. А.С. Пушкина\" г.Набережные Челны Республики Татарстан",16547867720,"Маев","Кирилл","Дмитриевич","м","04.04.2011","нет",6,6,1,4,8,16,null,29,null,null,51,null,null,"Кремнева Алена Сергеевна","Муниципальное автономное общеобразовательное учреждение \"Лицей №78 им. А.С. Пушкина\" г.Набережные Челны Республики Татарстан"]
[null,81,"261006_17212362735_30","Муниципальное бюджтеное общеобразовательное учреждение \"Средняя общеобразовательная школа №6\" г.Набережные Челны Республики Татарстан",17212362735,"Симченко","Максим","Денисович","м","31.01.2011","нет",6,6,1,3,9,16,null,29,null,null,51,null,null,"Юрлина Ирина Николаевна","Муниципальное бюджтеное общеобразовательное учреждение \"Средняя общеобразовательная школа №6\" г.Набережные Челны Республики Татарстан"]
[null,82,"261078_17380715983_30","Муниципальное автономное общеобразовательное учреждение \"Лицей №78 им. А.С. Пушкина\"",17380715983,"Ахметзянов","Карим","Азатович","м","23.09.2012","нет",5,5,2,0,10,16,null,28,null,null,51,null,null,"Шайдуллина Ландыш Миннафиковна","Муниципальное автономное общеобразовательное учреждение \"Лицей №78 им. А.С. Пушкина\""]
[null,83,"261078_16826046785_30","Муниципальное автономное общеобразовательное учреждение \"Лицей №78 им. А.С. Пушкина\" г.Набережные Челны Республики Татарстан",16826046785,"Есартия","Мелания","Давидовна","ж","14.08.2011","нет",6,6,1,4,12,11,null,28,null,null,51,null,null,"Султанова Айгуль Азатовна","Муниципальное автономное общеобразовательное учреждение \"Лицей №78 им. А.С. Пушкина\" г.Набережные Челны Республики Татарстан"]
[null,84,"261030_16812803672_30","Муниципальное бюджетное общеобразовательное учреждение \"Средняя общеобразовательная школа №30\" города Набережные Челны Республики Татарстан",16812803672,"Усманов","Азат","Анварович","м","18.08.2011","нет",6,6,5,5,18,0,null,28,null,null,51,null,null,"Насырова Зиля Фалиховна","Муниципальное бюджетное общеобразовательное учреждение \"Средняя общеобразовательная школа №30\" города Набережные Челны Республики Татарстан"]
[null,85,"261019_16520114725_30","Муниципальное бюджтеное общеобразовательное учреждение \"Средняя общеобразовательная школа №19 с углубленным изучением отдельных предметов\" г.Набережные Челны Республики Татарстан",16520114725,"Сабиров","Ислам","Ильдарович","м","30.03.2011","нет",6,6,4,2,9,12,null,27,null,null,51,null,null,"Кузьмина Мария Кирилловна","Муниципальное бюджтеное общеобразовательное учреждение \"Средняя общеобразовательная школа №19 с углубленным изучением отдельных предметов\" г.Набережные Челны Республики Татарстан"]
[null,86,"265001_17142427243_30","Муниципальное автономное общеобразовательное учреждение \"Гимназия №77\" г.Набережные Челны Республики Татарстан",17142427243,"Чернышев","Богдан","Олегович","м","26.03.2012","нет",5,5,4,1,8,14,null,27,null,null,51,null,"Да","Минхаирова Гузель Газизовга","Муниципальное автономное общеобразовательное учреждение \"Гимназия №77\" г.Набережные Челны Республики Татарстан"]
[null,87,"261015_16520119331_30","Муниципальное автономное общеобразовательное учреждение города Набережные Челны \"Средняя общеобразовательная школа №15\"  г.Набережные Челны Республики Татарстан",16520119331,"Якимова","Елизавета","Евгеньевна","ж","27.03.2011","нет",6,6,2,2,9,14,null,27,null,null,51,null,null,"Чернышова Лениза Игоревна","Муниципальное автономное общеобразовательное учреждение города Набережные Челны \"Средняя общеобразовательная школа №15\"  г.Набережные Челны Республики Татарстан"]
[null,88,"261042_16973393525_30","Муниципальное бюджетное общеобразовательное учреждение \"Средняя общеобразовательная школа № 42\"г.Набережные Челны Республики Татарстан",16973393525,"Кириллов","Платон","Сергеевич","м","20.12.2011","нет",6,6,2,1,8,15,null,26,null,null,51,null,null,"Петрова Юлия Владимировна","Муниципальное бюджетное общеобразовательное учреждение \"Средняя общеобразовательная школа № 42\"г.Набережные Челны Республики Татарстан"]
[null,89,"261043_16826045379_30","Муниципальное бюджетное общеобразовательное учреждение «Средняя общеобразовательная школа №43» г.Набережные Челны Республики Татарстан",16826045379,"Мухаматгалиева","Лейла","Ильфаровна","ж","21.08.2011","нет",6,6,0,3,11,12,null,26,null,null,51,null,null,"Москалева Наталья Михайловна","Муниципальное бюджетное общеобразовательное учреждение «Средняя общеобразовательная школа №43» г.Набережные Челны Республики Татарстан"]
[null,90,"261061_17768808844_30","Муниципальное автономное общеобразовательное учреждение \"Гимназия №61\"  г.Набережные Челны Республики Татарстан",17768808844,"Хатмуллин","Радмир","Романович","м","20.11.2010","нет",6,6,1,5,8,12,null,26,null,null,51,null,null,"Кузнецова Елена Игоревна","Муниципальное автономное общеобразовательное учреждение \"Гимназия №61\"  г.Набережные Челны Республики Татарстан"]
[null,91,"261001_17758614421_30","Муниципальное автономное общеобразовательное учреждение \"Средняя общеобразовательная школа №1\" г.Набережные Челны Республики Татарстан",17758614421,"Гилязов","Тимур","Азатович","м","26.02.2011","нет",6,6,1,2,7,15,null,25,null,null,51,null,null,"Мингазова Гузель Раисовна","Муниципальное автономное общеобразовательное учреждение \"Средняя общеобразовательная школа №1\" г.Набережные Челны Республики Татарстан"]
[null,92,"261076_17182352363_30","Муниципальное автономное общеобразовательное учреждение города Набережные Челны \"Гимназия №76\" г.Набережные Челны Республики Татарстан",17182352363,"Хаметов","Сарим","Рустамович","м","26.04.2012","нет",5,5,3,4,5,13,null,25,null,null,51,null,null,"Хакимова Раушания Тахировна","Муниципальное автономное общеобразовательное учреждение города Набережные Челны \"Гимназия №76\" г.Набережные Челны Республики Татарстан"]
[null,93,"263054_16606239669_30","Муниципальное бюджетное общеобразовательное учреждение \"Гимназия №54\" г. Набережные Челны Республика Татарстан",16606239669,"Хуснуллина","Ралина","Радиковна","ж","06.05.2011","нет",6,6,6,5,7,7,null,25,null,null,51,null,null,"Саляхетдинова Чулпан Разимовна","Муниципальное бюджетное общеобразовательное учреждение \"Гимназия №54\" г. Набережные Челны Республика Татарстан"]
[null,94,"261027_16970596726_30","Муниципальное бюджетное общеобразовательное учреждение \"Средняя общеобразовательная школа №27\" г.Набережные Челны Республики Татарстан",16970596726,"Пенджиева","Альмира","Батыровна","ж","19.12.2011","нет",6,6,5,4,15,0,null,24,null,null,51,null,null,"Кузнецова Дарья Андреевна","Муниципальное бюджетное общеобразовательное учреждение \"Средняя общеобразовательная школа №27\" г.Набережные Челны Республики Татарстан"]
[null,95,"261076_17276260076_30","Муниципальное автономное общеобразовательное учреждение города Набережные Челны \"Гимназия №76\" г.Набережные Челны Республики Татарстан",17276260076,"Романов","Максим","Валерьевич","м","24.06.2012","нет",5,5,3,1,9,11,null,24,null,null,51,null,"Да","Хакимова Раушания Тахировна","Муниципальное автономное общеобразовательное учреждение города Набережные Челны \"Гимназия №76\" г.Набережные Челны Республики Татарстан"]
[null,96,"261078_19023996991_30","Муниципальное автономное общеобразовательное учреждение \"Лицей №78 им. А.С. Пушкина\" г.Набережные Челны Республики Татарстан",19023996991,"Бустерякова","Камилла","Егоровна","ж","23.08.2012","нет",5,5,2,1,12,8,null,23,null,null,51,null,null,"Шайдуллина Ландыш Миннафиковна","Муниципальное автономное общеобразовательное учреждение \"Лицей №78 им. А.С. Пушкина\" г.Набережные Челны Республики Татарстан"]
[null,97,"261005_16912604067_30","Муниципальное бюджетное общеобразовательное учреждение \"Средняя общеобразовательная школа № 5\" г. Набережные Челны Республики Татарстан",16912604067,"Гильманова","Маргарита","Ренатовна","ж","27.10.2011","нет",6,6,2,3,2,16,null,{"$f":"SUM(N99:Q99)","v":23},null,null,51,null,"Да","Тарасова Светлана Герасимовна","Муниципальное бюджетное общеобразовательное учреждение \"Средняя общеобразовательная школа № 5\" г. Набережные Челны Республики Татарстан"]
[null,98,"261057_17651021554_30","Муниципальное бюджетное общеобразовательное учреждение \"Центр образования - Гимназия №57 \"Притяжение\" г.Набережные Челны Республики Татарстан",17651021554,"Игдиева","Аделина","Руслановна","ж","19.10.2010","нет",6,6,1,2,8,12,null,23,null,null,51,null,null,"Быкова Диана Дмитриевна","Муниципальное бюджетное общеобразовательное учреждение \"Центр образования - Гимназия №57 \"Притяжение\" г.Набережные Челны Республики Татарстан"]
[null,99,"261060_16912452878_30","Муниципальное бюджетное общеобразовательное учреждение \"Средняя общеобразовательная школа №60\" г.Набережные Челны Республики Татарстан",16912452878,"Сенько","Арина","Дмитриевна","ж","24.10.2011","нет",6,6,2,2,6,13,null,23,null,null,51,null,null,"Тихонова Марина Анатольевна","Муниципальное бюджетное общеобразовательное учреждение \"Средняя общеобразовательная школа №60\" г.Набережные Челны Республики Татарстан"]
[null,100,"261039_16707429282_30","Муниципальное бюджетное общеобразовательное учреждение \"Средняя общеобразовательная школа №39\" г.Набережные Челны Республики Татарстан",16707429282,"Трушкова","Ксения","Сергеевна","ж","16.06.2011","нет",6,6,4,4,15,0,null,23,null,null,51,null,null,"Гимадиева Лидия Вячеславовна","Муниципальное бюджетное общеобразовательное учреждение \"Средняя общеобразовательная школа №39\" г.Набережные Челны Республики Татарстан"]
[null,101,"261041_16850694101_30","Муниципальное бюджетное общеобразовательное учреждение \" Средняя обшеобразовательная школа№ 41\" г. Набережные Челны Республики Татарстан",16850694101,"Шакирова","Айзиля","Алмазовна","ж","29.07.2011","нет",6,6,2,4,7,10,null,23,null,null,51,null,null,"Сибгатуллина Лейсан Ирековна","Муниципальное бюджетное общеобразовательное учреждение \" Средняя обшеобразовательная школа№ 41\" г. Набережные Челны Республики Татарстан"]
[null,102,"261061_17053788279_30","Муниципальное автономное общеобразовательное учреждение \"Гимназия №61\" г.Набережные Челны",17053788279,"Аракелян","Юрий","Викторович","м","28.01.2012","нет",5,5,3,2,6,11,null,22,null,null,51,null,"Да","Алпацкая Диана Тагировна","Муниципальное автономное общеобразовательное учреждение \"Гимназия №61\" г.Набережные Челны"]
[null,103,"263018_17101443818_30","Муниципальное бюджетное общеобразовательное учреждение «Средняя общеобразовательная школа №18 с углубленным изучением отдельных предметов»",17101443818,"Набок","Полина","Руслановна","ж","26.10.2010","нет",6,6,1,1,7,12,null,21,null,null,51,null,null,"Урманова Чулпан Айдаровна","Муниципальное бюджетное общеобразовательное учреждение «Средняя общеобразовательная школа №18 с углубленным изучением отдельных предметов»"]
[null,104,"261026_16756619312_30","Муниципальное бюджетное общеобразовательное учреждение \"Гимназия № 26\" г.Набережные Челны Республики Татарстан",16756619312,"Салихов","Амир","Айратович","м","03.07.2011","нет",6,6,4,5,12,0,null,21,null,null,51,null,null,"Гимадеева Эльза Николаевна","Муниципальное бюджетное общеобразовательное учреждение \"Гимназия № 26\" г.Набережные Челны Республики Татарстан"]
[null,105,"261050_16912457181_30","Муниципальное автономное общеобразовательное учреждение города Набережные Челны «Средняя общеобразовательная школа №50 с углубленным изучением отдельных предметов» Республики Татарстан",16912457181,"Грицкевич","Иона","Константиновна","ж","18.10.2011","нет",6,6,1,2,5,12,null,20,null,null,51,null,null,"Закиева Гульшат Галимяновнв","Муниципальное автономное общеобразовательное учреждение города Набережные Челны «Средняя общеобразовательная школа №50 с углубленным изучением отдельных предметов» Республики Татарстан"]
[null,106,"263058_16812806779_30","Муниципальное бюджетное общеобразовательное учреждение \"Средняя общеобразовательная школа №58\"",16812806779,"Затееева","Дарья","Юрьевна","ж","11.08.2011","нет",6,6,4,4,12,0,null,20,null,null,51,null,null,"Габдуллина Светлана Наилевна","Муниципальное бюджетное общеобразовательное учреждение \"Средняя общеобразовательная школа №58\""]
[null,107,"261016_16520114422_30","Муниципальное бюджетное общеобразовательное учреждение \"Средняя общеобразовательная школа \"Центр образования №16\"",16520114422,"Короткова","Таисия","Валерьевна","ж","30.03.2011","нет",6,6,2,3,5,10,null,20,null,null,51,null,null,"Николаева Алсу Ринатовна","Муниципальное бюджетное общеобразовательное учреждение \"Средняя общеобразовательная школа \"Центр образования №16\""]
[null,108,"261051_17038314045_30","Муниципальное автономное общеобразовательное учреждение города Набережные Челны \"Средняя общеобразовательная школа №51\"",17038314045,"Токарев","Богдан","Евгеньевич","м","08.02.2012","нет",5,5,2,2,8,8,null,20,null,null,51,null,null,"Трифонова Ольга Анатольевна","Муниципальное автономное общеобразовательное учреждение города Набережные Челны \"Средняя общеобразовательная школа №51\""]
[null,109,"261048_16720775480_30","Муниципальное автономное общеобразовательное учреждение г.Набережные Челны «Средняя общеобразовательная школа №48» Республики Татарстан",16720775480,"Гильманова","Карина","Руслановна","ж","23.06.2011","нет",6,6,0,3,5,10,null,18,null,null,51,null,null,"Ижболдина Ольга Николаевна","Муниципальное автономное общеобразовательное учреждение г.Набережные Челны «Средняя общеобразовательная школа №48» Республики Татарстан"]
[null,110,"265001_16878978773_30","Муниципальное автономное общеобразовательное учреждение \"Гимназия №77\"",16878978773,"Ладкина","Анастасия","Романовна","ж","24.10.2011","нет",6,6,2,0,7,9,null,18,null,null,51,null,null,"Чуваева Людмила Анатольевна","Муниципальное автономное общеобразовательное учреждение \"Гимназия №77\""]
[null,111,"261031_21253159627_30","Муниципальное бюджетное общеобразовательное учреждение \"Средняя общеобразовательная школа №31 с углубленным изучением отдельных предметов\" г.Набережные Челны Республики Татарстан",21253159627,"Гнибида","Юрий","Сергеевич","м","10.03.2012","нет",6,6,1,1,6,9,null,17,null,null,51,null,null,"Сабирова Зухра Завдатовна","Муниципальное бюджетное общеобразовательное учреждение \"Средняя общеобразовательная школа №31 с углубленным изучением отдельных предметов\" г.Набережные Челны Республики Татарстан"]
[null,112,"261001_17912747400_30","Муниципальное автономное общеобразовательное учреждение \"Средняя общеобразовательная школа №1\" г.Набережные Челны Республики Татарстан",17912747400,"Арапова","Анна","Андреевна","ж","15.02.2011","нет",6,6,4,2,11,0,null,17,null,null,51,null,null,"Мингазова Гузель Раисовна","Муниципальное автономное общеобразовательное учреждение \"Средняя общеобразовательная школа №1\" г.Набережные Челны Республики Татарстан"]
[null,113,"263052_16863724408_30","Муниципальное бюджетное общеобразовательное учреждение «Средняя общеобразовательная школа №52» города Набережные Челны Республики Татарстан",16863724408,"Садреева","Ралина","Ренатовна","ж","25.09.2011","нет",6,6,0,0,6,11,null,17,null,null,51,null,null,"Фаррахова Эльмира Ирековна","Муниципальное бюджетное общеобразовательное учреждение «Средняя общеобразовательная школа №52» города Набережные Челны Республики Татарстан"]
[null,114,"261031_16801129449_30","Муниципальное бюджетное общеобразовательное учреждение \"Средняя общеобразовательная школа №31 с углубленным изучением отдельных предметов\" г.Набережные Челны Республики Татарстан",16801129449,"Камалетдинова","Агния","Рашидовна","ж","30.07.2011","нет",6,6,0,3,4,9,null,16,null,null,51,null,null,"Гибадуллина Анна Сергеевна","Муниципальное бюджетное общеобразовательное учреждение \"Средняя общеобразовательная школа №31 с углубленным изучением отдельных предметов\" г.Набережные Челны Республики Татарстан"]
[null,115,"261037_17495467321_30","Муниципальное бюджетное общеобразовательное учреждение \"средняя общеобразовательная школа №37 с углубленным изучением отдельных предметов\" г.Набережные Челны Республики Татарстан",17495467321,"Гаязов","Эмиль","Ильнурович","м","04.01.2011","нет",6,6,1,3,4,8,null,16,null,null,51,null,null,"Мазитов Рамиль Рифович","Муниципальное бюджетное общеобразовательное учреждение \"средняя общеобразовательная школа №37 с углубленным изучением отдельных предметов\" г.Набережные Челны Республики Татарстан"]
[null,116,"261057_17750774403_30","Муниципальное бюджетное общеобразовательное учреждение \"Центр образования - Гимназия №57 \"Притяжение\"",17750774403,"Давлетханов ","Амирхан","Айратович","м","26.04.2011","нет",6,6,2,0,7,6,null,15,null,null,51,null,null,"Трохина Равиля Хамзовна","Муниципальное бюджетное общеобразовательное учреждение \"Центр образования - Гимназия №57 \"Притяжение\""]
[null,117,"261036_17951690214_30","Муниципальное автономное общеобразовательное учреждение \"Лицей инновационных технологий №36\" г.Набережные Челны Республики Татарстан",17951690214,"Лапочкин","Марсель","Маратович","м","17.01.2011","нет",6,6,4,4,7,0,null,15,null,null,51,null,null,"Зорина Ирина Витальевна","Муниципальное автономное общеобразовательное учреждение \"Лицей инновационных технологий №36\" г.Набережные Челны Республики Татарстан"]
[null,118,"263029_17128890789_30","Муниципальное бюджетное общеобразовательное учреждение \"Гимназия №29\" г. Набережные Челны",17128890789,"Секлетина","Ксения","Артёмовна","ж","17.04.2011","нет",6,6,3,0,1,11,null,15,null,null,51,null,null,"Байбурина Олеся Даниловна","Муниципальное бюджетное общеобразовательное учреждение \"Гимназия №29\" г. Набережные Челны"]
[null,119,"261078_17217062748_30","Муниципальное автономное общеобразовательное учреждение \"Лицей №78 им. А.С. Пушкина\"",17217062748,"Симонов","Артемий","Эльвирович","м","11.05.2012","нет",5,5,2,3,9,0,null,14,null,null,51,null,null,"Шайдуллина Ландыш Миннафиковна","Муниципальное автономное общеобразовательное учреждение \"Лицей №78 им. А.С. Пушкина\""]
[null,120,"261023_17667883240_30","Муниципальное бюджетное общеобразовательное учреждение \"Средняя общеобразовательная школа №23\" г.Набережные Челны Республики Татарстан",17667883240,"Мустафин","Эдуард","Рустемович","м","03.12.2010","нет",6,6,1,2,11,0,null,14,null,null,51,null,null,"Логунова Наталья Михайловна","Муниципальное бюджетное общеобразовательное учреждение \"Средняя общеобразовательная школа №23\" г.Набережные Челны Республики Татарстан"]
[null,121,"261019_16846352299_30","МБОУ \"Средняя общеобразовательная школа №19 с углубленным изучением отдельных предметов\"",16846352299,"Назмутдинов","Расим","Айратович","м","14.09.2011","нет",6,6,1,1,3,6,null,11,null,null,51,null,null,"Кузьмина Мария Кирилловна","МБОУ \"Средняя общеобразовательная школа №19 с углубленным изучением отдельных предметов\""]
[null,122,"261046_16552906181_30","Муниципальное бюджетное общеобразовательное учреждение \"Средняя общеобразовательная школа №46 имени кавалера ордена Мужества Дмитрия Бадретдинова\" г. Набережные Челны",16552906181,"Шаракаев","Эрик","Маратович","м","25.04.2011","нет",6,6,0,2,7,0,null,9,null,null,51,null,null,"Прудникова Юлия Викторовна","Муниципальное бюджетное общеобразовательное учреждение \"Средняя общеобразовательная школа №46 имени кавалера ордена Мужества Дмитрия Бадретдинова\" г. Набережные Челны"]
[null,123,"261046_16684808720_30","Муниципальное бюджетное общеобразовательное учреждение \"Средняя общеобразовательная школа №46 имени кавалера ордена Мужества Дмитрия Бадретдинова\" г. Набережные Челны",16684808720,"Потапов","Никита","Андреевич","м","09.06.2011","нет",6,6,0,0,0,7,null,7,null,null,51,null,null,"Прудникова Юлия Викторовна","Муниципальное бюджетное общеобразовательное учреждение \"Средняя общеобразовательная школа №46 имени кавалера ордена Мужества Дмитрия Бадретдинова\" г. Набережные Челны"]
[null,124,"261037_17286260890_30","Муниципальное бюджетное общеобразовательное учреждение \"средняя общеобразовательная школа №37 с углубленным изучением отдельных предметов\" г.Набережные Челны Республики Татарстан",17286260890,"Сычев","Евгений","Дмитриевич","м","07.07.2012","нет",5,5,0,1,5,0,null,6,null,null,51,null,null,"Абдулина Асия Рафаиловна","Муниципальное бюджетное общеобразовательное учреждение \"средняя общеобразовательная школа №37 с углубленным изучением отдельных предметов\" г.Набережные Челны Республики Татарстан"]
[null,125,"261005_16417649786_30","Муниципальное бюджетное общеобразовательное учреждение \"Средняя общеобразовательная школа № 5\" г. Набережные Челны Республики Татарстан",16417649786,"Куклова","Валерия","Сергеевна","ж","16.02.2011","нет",6,6,2,0,3,0,null,5,null,null,51,null,"Да","Тарасова Светлана Герасимовна","Муниципальное бюджетное общеобразовательное учреждение \"Средняя общеобразовательная школа № 5\" г. Набережные Челны Республики Татарстан"]
[null,126,"261022_16947539630_30","Муниципальное бюджетное образовательное учреждение \"Средняя общеобразовательная школа№22\"",16947539630,"Ризатдинова","Аделина","Айдаровна","ж","06.07.2011","нет",6,6,0,2,3,0,null,5,null,null,51,null,null,"Федорова Олеся Юрьевна","Муниципальное бюджетное образовательное учреждение \"Средняя общеобразовательная школа№22\""]
[null,127,"261046_16384097490_30","Муниципальное бюджетное общеобразовательное учреждение \"Средняя общеобразовательная школа №46 имени кавалера ордена Мужества Дмитрия Бадретдинова\" г. Набережные Челны",16384097490,"Васильков","Михаил","Сергеевич","м","14.01.2011","нет",6,6,0,2,3,0,null,5,null,null,51,null,null,"Прудникова Юлия Викторовна","Муниципальное бюджетное общеобразовательное учреждение \"Средняя общеобразовательная школа №46 имени кавалера ордена Мужества Дмитрия Бадретдинова\" г. Набережные Челны"]
[null,128,"261001_17247601669_30","Муниципальное автономное общеобразовательное учреждение \"Средняя общеобразовательная школа №1\" г.Набережные Челны Республики Татарстан",17247601669,"Гарифуллин","Амира","Артурович","м","06.06.2012","нет",5,5,0,1,4,0,null,5,null,null,51,null,null,"Мингазова Гузель Раисовна","Муниципальное автономное общеобразовательное учреждение \"Средняя общеобразовательная школа №1\" г.Набережные Челны Республики Татарстан"]
[null,129,"261037_17247593797_30","Муниципальное бюджетное общеобразовательное учреждение \"средняя общеобразовательная школа №37 с углубленным изучением отдельных предметов\" г.Набережные Челны Республики Татарстан",17247593797,"Валеева","Эндже","Ильшатовна","ж","07.06.2012","нет",5,5,2,2,1,0,null,{"$f":"SUM(N131:Q131)","v":5},null,null,51,null,null,"Абдулина Асия Рафаиловна","Муниципальное бюджетное общеобразовательное учреждение \"средняя общеобразовательная школа №37 с углубленным изучением отдельных предметов\" г.Набережные Челны Республики Татарстан"]
[null,130,"261053_17019181550_30","Муниципальное бюджетное общеобразовательное учреждение \"Средняя общеобразовательная школа №53\" г.Набережные Челны Республики Татарстан",17019181550,"Малышева","Амалия","Максимовна","ж","08.01.2012","нет",5,5,1,1,3,0,null,5,null,null,51,null,null,"Архипова Марина Айдаровна","Муниципальное бюджетное общеобразовательное учреждение \"Средняя общеобразовательная школа №53\" г.Набережные Челны Республики Татарстан"]
[null,131,"261037_16878980659_30","Муниципальное бюджетное общеобразовательное учреждение \"средняя общеобразовательная школа №37 с углубленным изучением отдельных предметов\" г.Набережные Челны Республики Татарстан",16878980659,"Кочетов","Ярослав","Борисович","м","04.10.2011","нет",6,6,1,2,2,0,null,5,null,null,51,null,null,"Мазитов Рамиль Рифович","Муниципальное бюджетное общеобразовательное учреждение \"средняя общеобразовательная школа №37 с углубленным изучением отдельных предметов\" г.Набережные Челны Республики Татарстан"]
[null,132,"261037_16707424979_30","Муниципальное бюджетное общеобразовательное учреждение \"средняя общеобразовательная школа №37 с углубленным изучением отдельных предметов\" г.Набережные Челны Республики Татарстан",16707424979,"Ванюрихин","Богдан","Денисович","м","03.06.2011","нет",6,6,0,0,4,0,null,4,null,null,51,null,null,"Абдулина Асия Рафаиловна","Муниципальное бюджетное общеобразовательное учреждение \"средняя общеобразовательная школа №37 с углубленным изучением отдельных предметов\" г.Набережные Челны Республики Татарстан"]
[null,133,"261033_16801125239_30","муниципальное бюджетное общеобразовательное учреждение \"Средняя общеобразовательная школа №33\" г. Набережные Челны",16801125239,"Чугунова","Дарья","Владимировна","ж","05.08.2011","нет",6,6,0,3,1,0,null,4,null,null,51,null,null,"Гизатуллина Гульназ Фаязовна","муниципальное бюджетное общеобразовательное учреждение \"Средняя общеобразовательная школа №33\" г. Набережные Челны"]
[null,134,"261037_17507646587_30","Муниципальное бюджетное общеобразовательное учреждение \"средняя общеобразовательная школа №37 с углубленным изучением отдельных предметов\" г.Набережные Челны Республики Татарстан",17507646587,"Докукина","Мария","Антоновна","ж","24.11.2012","нет",5,5,0,1,3,0,null,4,null,null,51,null,null,"Абдулина Асия Рафаиловна","Муниципальное бюджетное общеобразовательное учреждение \"средняя общеобразовательная школа №37 с углубленным изучением отдельных предметов\" г.Набережные Челны Республики Татарстан"]
[null,135,"261021_16967067930_30","Муниципальное автономное общеобразовательное учреждение города Набережные Челны \"Средняя общеобразовательная школа №21\"",16967067930,"Файзелхаков","Ирек","Ильдарович","м","01.12.2011","нет",6,6,2,1,1,0,null,4,null,null,51,null,null,"Воеводина Елена Алексеевна","Муниципальное автономное общеобразовательное учреждение города Набережные Челны \"Средняя общеобразовательная школа №21\""]
[null,136,"263079_16990296726_30","Муниципальное бюджетное общеобразовательное учреждение \"Лицей-интернат №79\"",16990296726,"Мухаметшин","Ринат","Марселевич","м","21.12.2011","нет",5,5,0,1,3,0,null,4,null,null,51,null,null,"Хафизов Зульфат Тагирович","Муниципальное бюджетное общеобразовательное учреждение \"Лицей-интернат №79\""]
[null,137,"261061_17247587701_30","муниципальное автономное общеобразовательное учреждение \"Гимназия №61\" г.Набережные Челны",17247587701,"Кириллова","Ульяна","Артемовна","ж","10.06.2012","нет",5,5,0,2,2,0,null,4,null,null,51,null,null,"Кириллова Наталья Ивановна","муниципальное автономное общеобразовательное учреждение \"Гимназия №61\" г.Набережные Челны"]
[null,138,"261011_17182350056_30","Муниципальное бюджетное общеобразовательное учреждение «Средняя общеобразовательная школа № 11»",17182350056,"Лопаткин","Иван","Иванович","м","29.04.2012","нет",5,5,0,0,4,0,null,4,null,null,51,null,null,"Хайруллина Раушания Рамилевна","Муниципальное бюджетное общеобразовательное учреждение «Средняя общеобразовательная школа № 11»"]
[null,139,"261005_16684799442_30","Муниципальное бюджетное общеобразовательное учреждение \"Средняя общеобразовательная школа № 5\" г. Набережные Челны Республики Татарстан",16684799442,"Муслахова","Сумбель","Ильдаровна","ж","13.06.2011","нет",6,6,0,1,3,0,null,4,null,null,51,null,"Да","Архипова Людмила Ивановна","Муниципальное бюджетное общеобразовательное учреждение \"Средняя общеобразовательная школа № 5\" г. Набережные Челны Республики Татарстан"]
[null,140,"261001_17175766803_30","Муниципальное автономное общеобразовательное учреждение \"Средняя общеобразовательная школа №1\" г.Набережные Челны Республики Татарстан",17175766803,"Касакина","Арина","Руслановна","ж","06.04.2012","нет",5,5,1,1,1,0,null,3,null,null,51,null,null,"Мингазова Гузель Раисовна","Муниципальное автономное общеобразовательное учреждение \"Средняя общеобразовательная школа №1\" г.Набережные Челны Республики Татарстан"]
[null,141,"261043_16929054806_30","Муниципальное бюджетное общеобразовательное учреждение «Средняя общеобразовательная школа №43»",16929054806,"Кузнецов ","Дмитрий","Сергеевич","м","11.11.2011","нет",5,5,1,1,1,0,null,3,null,null,51,null,null,"Муратова Эльвира Валерьевна","Муниципальное бюджетное общеобразовательное учреждение «Средняя общеобразовательная школа №43»"]
[null,142,"263018_16812797905_30","Муниципальное бюджетное общеобразовательное учреждение «Средняя общеобразовательная школа №18 с углубленным изучением отдельных предметов»",16812797905,"Горнов","Артём","Валентинович","м","09.08.2011","нет",6,6,0,1,1,0,null,{"$f":"SUM(N144:Q144)","v":2},null,null,51,null,null,"Семенова Надежда Ивановна","Муниципальное бюджетное общеобразовательное учреждение «Средняя общеобразовательная школа №18 с углубленным изучением отдельных предметов»"]
[null,143,"261082_22330341604_30","Государственное бюджетное общеобразовательное учреждение \"Кадетская школа №82 имени Героя Советского Союза Ильдара Маннанова\" г. Набережные Челны Республики Татарстан",22330341604,"Куксгаус","Максим",null,"м","21.12.2010","нет",6,6,1,1,0,0,null,2,null,null,51,null,null,"Нугманова Илюса Шаукатовна","Государственное бюджетное общеобразовательное учреждение \"Кадетская школа №82 имени Героя Советского Союза Ильдара Маннанова\" г. Набережные Челны Республики Татарстан"]
[null,144,"261059_17380713575_30","Муниципальное бюджетное общеобразовательное учреждение «Полилингвальная гимназия № 59 «Адымнар-Чаллы»",17380713575,"Фасхутдинова","Земфира","Айратовна","ж","13.09.2012","нет",5,5,0,1,1,0,null,2,null,null,51,null,null,"Кабирова Гульшат Рафаэлевна","Муниципальное бюджетное общеобразовательное учреждение «Полилингвальная гимназия № 59 «Адымнар-Чаллы»"]
[null,145,"261019_16606244965_30","МБОУ \"Средняя общеобразовательная школа №19 с углубленным изучением отдельных предметов\"",16606244965,"Чапчаков","Амир","Алмазович","м","06.05.2011","нет",6,6,0,0,2,0,null,2,null,null,51,null,null,"Кузьмина Мария Кирилловна","МБОУ \"Средняя общеобразовательная школа №19 с углубленным изучением отдельных предметов\""]
[null,146,"261035_17053783572_30","Муниципальное автономное общеобразовательное учреждение города Набережные Челны \"Средняя общеобразовтельная школа №35 с углубленным изучением отдельных предметов\" Республики Татарстан",17053783572,"Шарафутдинов","Раиль","Ригелевич","м","09.02.2012","нет",5,5,0,1,1,0,null,{"$f":"SUM(N148:Q148)","v":2},null,null,51,null,null,"Беззубова Юлдуз Шавкатовна","Муниципальное автономное общеобразовательное учреждение города Набережные Челны \"Средняя общеобразовтельная школа №35 с углубленным изучением отдельных предметов\" Республики Татарстан"]
[null,147,"261037_17316191660_30","Муниципальное бюджетное общеобразовательное учреждение \"средняя общеобразовательная школа №37 с углубленным изучением отдельных предметов\" г.Набережные Челны Республики Татарстан",17316191660,"Яхин","Таир","Ринатович","м","29.07.2012","нет",5,5,0,1,1,0,null,{"$f":"SUM(N149:Q149)","v":2},null,null,51,null,null,"Абдулина Асия Рафаиловна","Муниципальное бюджетное общеобразовательное учреждение \"средняя общеобразовательная школа №37 с углубленным изучением отдельных предметов\" г.Набережные Челны Республики Татарстан"]
[null,148,"261005_17373117770_30","Муниципальное бюджетное общеобразовательное учреждение \"Средняя общеобразовательная школа № 5\" г. Набережные Челны Республики Татарстан",17373117770,"Зайнуллин","Амир","Рустамович","м","25.08.2012","нет",5,5,0,0,1,0,null,1,null,null,51,null,"Да","Архипова Людмила Ивановна","Муниципальное бюджетное общеобразовательное учреждение \"Средняя общеобразовательная школа № 5\" г. Набережные Челны Республики Татарстан"]
[null,149,"261019_16945174000_30","МБОУ \"Средняя общеобразовательная школа №19 с углубленным изучением отдельных предметов\"",16945174000,"Сухова","Анна","Ильинична","ж","23.11.2011","нет",5,5,0,0,1,0,null,1,null,null,51,null,null,"Лазарева Алия Вагизовна","МБОУ \"Средняя общеобразовательная школа №19 с углубленным изучением отдельных предметов\""]
[null,150,"261048_17427107966_30","Муниципальное автономное общеобразовательное учреждение г.Набережные Челны «Средняя общеобразовательная школа №48» Республики Татарстан",17427107966,"Уварова","Анастасия","Владимировна","ж","22.10.2012","нет",5,5,0,0,1,0,null,{"$f":"SUM(N152:Q152)","v":1},null,null,51,null,null,"Ижболдина Ольга Николаевна","Муниципальное автономное общеобразовательное учреждение г.Набережные Челны «Средняя общеобразовательная школа №48» Республики Татарстан"]
[null,151,"261005_17201493537_30","Муниципальное бюджетное общеобразовательное учреждение \"Средняя общеобразовательная школа № 5\" г. Набережные Челны Республики Татарстан",17201493537,"Абдуллин","Камиль","Ирекович","м","27.12.2011","нет",5,5,0,0,0,0,null,{"$f":"SUM(N153:Q153)","v":0},null,null,51,null,null,"Архипова Людмила Ивановна","Муниципальное бюджетное общеобразовательное учреждение \"Средняя общеобразовательная школа № 5\" г. Набережные Челны Республики Татарстан"]
[null,152,"263004_16850686910_30","Муниципальное автономное общеобразовательное учреждение города Набережные Челны «Средняя общеобразовательная школа №4»",16850686910,"Маликов","Камиль","Рамилевич","м","15.09.2011","нет",6,6,0,0,0,0,null,0,null,null,51,null,null,"Хузязянова Илюза Сагировна","Муниципальное автономное общеобразовательное учреждение города Набережные Челны «Средняя общеобразовательная школа №4»"]
[null,153,"261076_16925834711_30","Муниципальное автономное общеобразовательное учреждение города Набережные Челны \"Гимназия №76\"",16925834711,"Захарова","Валерия","Андреевна","ж","14.07.2010","нет",7,7,6,20,22,18,19,{"$f":"SUM(N155:R155)","v":85},null,null,95,null,"Да","Сычугова Елена Вячеславовна","Муниципальное автономное общеобразовательное учреждение города Набережные Челны \"Гимназия №76\""]
[null,154,"261078_19261136666_30","Муниципальное автономное общеобразовательное учреждение \"Лицей №78 им. А.С. Пушкина\" г.Набережные Челны Республики Татарстан",19261136666,"Галимарданов","Камаль","Фанилевич","м","30.04.2009","нет",8,8,8,17,18,18,19,80,null,null,95,null,"Да","Сарварова Зульфира Флуновна","Муниципальное автономное общеобразовательное учреждение \"Лицей №78 им. А.С. Пушкина\""]
[null,155,"261078_17066357071_30","Муниципальное автономное общеобразовательное учреждение \"Лицей №78 им. А.С. Пушкина\" г.Набережные Челны Республики Татарстан",17066357071,"Канатаев","Владислав","Евгеньевич","м","01.07.2009","нет",8,8,7,15,15,18,19,74,null,null,95,null,"Да","Сарварова Зульфира Флуновна","Муниципальное автономное общеобразовательное учреждение \"Лицей №78 им. А.С. Пушкина\""]
[null,156,"261076_15954138393_30","Муниципальное автономное общеобразовательное учреждение города Набережные Челны \"Гимназия №76\" г.Набережные Челны Республики Татарстан",15954138393,"Салахова","Амелия","Айдаровна","ж","17.03.2009","нет",8,8,7,11,12,20,20,70,null,null,95,null,"Да","Сычугова Елена Вячеславовна","Муниципальное автономное общеобразовательное учреждение города Набережные Челны \"Гимназия №76\""]
[null,157,"261060_17127341953_30","муниципальное бюджетное общеобразовательное учреждение \"Средняя общеобразовательная школа №60\" г.Набережные Челны Республики Татарстан",17127341953,"Загрутдинова","Элина","Сергеевна","ж","05.07.2009","нет",8,8,6,12,12,20,17,67,null,null,95,null,"Да","Кострюкова Регина Валерьевна","муниципальное бюджетное общеобразовательное учреждение \"Средняя общеобразовательная школа №60\""]
[null,158,"261080_21542805238_30","Муниципальное бюджетное общеобразовательное учреждение \"Гимназия №14\" г.Набережные Челны Республики Татарстан",21542805238,"Кирсанова","Екатерина","Дмитриевна","ж","09.11.2008","нет",8,8,7,14,9,18,19,67,null,null,95,null,"Да","Васина Марина Николаевна","Муниципальное бюджетное общеобразовательное учреждение \"Гимназия №14\""]
[null,159,"261048_17247658799_30","Муниципальное автономное общеобразовательное учреждение г.Набережные Челны «Средняя общеобразовательная школа №48» Республики Татарстан",17247658799,"Богданов","Михаил","Максимович","м","25.06.2008","нет",8,8,8,14,13,16,15,66,null,null,95,null,null,"Пантина Земфира Халимовна","Муниципальное автономное общеобразовательное учреждение г.Набережные Челны «Средняя общеобразовательная школа №48» Республики Татарстан"]
[null,160,"261078_17207838878_30","Муниципальное автономное общеобразовательное учреждение \"Лицей №78 им. А.С. Пушкина\" г.Набережные Челны Республики Татарстан",17207838878,"Смирнова","Софья","Дмитриевна","ж","19.05.2009","нет",8,8,7,18,5,18,16,64,null,null,95,null,null,"Сарварова Зульфира Флуновна","Муниципальное автономное общеобразовательное учреждение \"Лицей №78 им. А.С. Пушкина\""]
[null,161,"261025_17164268978_30","Муниципальное бюджетное общеобразовательное учреждение \"Средняя общеобразовательная школа № 25\" г. Набережные Челны Республики Татарстан",17164268978,"Макаркин","Дементий","Андреевич","м","03.05.2009","нет",8,8,6,11,14,16,17,64,null,null,95,null,null,"Хабибуллина Расимя Зайдулловна","Муниципальное бюджетное общеобразовательное учреждение \"Средняя общеобразовательная школа № 25\" г. Набережные Челны Республики Татарстан"]
[null,162,"261078_17120079325_30","Муниципальное автономное общеобразовательное учреждение \"Лицей №78 им. А.С. Пушкина\" г.Набережные Челны Республики Татарстан",17120079325,"Корягина","Милена","Алексеевна","ж","08.10.2010","нет",7,7,6,8,10,20,20,64,null,null,95,null,"Да","Кремнева Алена Сергеевна","Муниципальное автономное общеобразовательное учреждение \"Лицей №78 им. А.С. Пушкина\""]
[null,163,"265001_17627097397_30","Муниципальное автономное общеобразовательное учреждение \"Гимназия №77\" г.Набережные Челны Республики Татарстан",17627097397,"Коровина","Анна","Александровна","ж","10.05.2010","нет",7,7,7,12,13,18,14,64,null,null,95,null,"Да","Ульянова Альбина Рустемовна","Муниципальное автономное общеобразовательное учреждение \"Гимназия №77\""]
[null,164,"261076_15859548632_30","Муниципальное автономное общеобразовательное учреждение города Набережные Челны \"Гимназия №76\" г.Набережные Челны Республики Татарстан",15859548632,"Крапивина","Ирина","Ивановна","ж","19.03.2010","нет",7,7,6,12,8,18,19,63,null,null,95,null,"Да","Кондылева Марина Сергеевна","Муниципальное автономное общеобразовательное учреждение города Набережные Челны \"Гимназия №76\""]
[null,165,"261076_17823392797_30","Муниципальное автономное общеобразовательное учреждение города Набережные Челны \"Гимназия №76\"",17823392797,"Гильмутдинова","Алиса","Рафисовна","ж","24.11.2008","нет",8,8,6,11,5,20,20,62,null,null,95,null,"Да","Кондылева Марина Сергеевна","Муниципальное автономное общеобразовательное учреждение города Набережные Челны \"Гимназия №76\""]
[null,166,"261026_17814370281_30","Муниципальное бюджетное общеобразовательное учреждение \"Гимназия № 26\" г.Набережные Челны Республики Татарстан",17814370281,"Шафиков","Камиль","Ильмирович","м","22.04.2009","нет",8,8,7,12,6,18,18,61,null,null,95,null,"Да","Роденко Евгения Валерьевна","Муниципальное бюджетное общеобразовательное учреждение \"Гимназия № 26\" г.Набережные Челны Республики Татарстан"]
[null,167,"261013_15843067984_30","Муниципальное бюджетное общеобразовательное учреждение «Средняя общеобразовательная школа № 13» г.Набережные Челны Республики Татарстан",15843067984,"Иванов","Савелий","Сергеевич","м","28.10.2010","нет",7,7,7,15,13,8,18,61,null,null,95,null,null,"Иванов Алексей Дамирович","Муниципальное бюджетное общеобразовательное учреждение «Средняя общеобразовательная школа № 13»"]
[null,168,"265001_17142438349_30","Муниципальное автономное общеобразовательное учреждение \"Гимназия №77\" г.Набережные Челны Республики Татарстан",17142438349,"Седлова","Камилла","Алмазовна","ж","28.09.2010","нет",7,7,7,8,13,19,14,61,null,null,95,null,"Да","Гарипова Василя Гайнутдиновна","Муниципальное автономное общеобразовательное учреждение \"Гимназия №77\""]
[null,169,"261026_19836402407_30","Муниципальное бюджетное общеобразовательное учреждение \"Гимназия № 26\" г.Набережные Челны Республики Татарстан",19836402407,"Чудновская","София","Маратовна","ж","04.01.2009","нет",7,7,5,19,14,16,7,61,null,null,95,null,null,"Дулатова Марина Александровна","Муниципальное бюджетное общеобразовательное учреждение \"Гимназия № 26\" г.Набережные Челны Республики Татарстан"]
[null,170,"261026_15950907293_30","Муниципальное бюджетное общеобразовательное учреждение \"Гимназия № 26\" г.Набережные Челны Республики Татарстан",15950907293,"Гафуров","Эмиль","Марсович","м","13.10.2009","нет",8,8,6,9,8,18,18,59,null,null,95,null,"Да","Есина Наталья Валерьевна","Муниципальное бюджетное общеобразовательное учреждение \"Гимназия № 26\" г.Набережные Челны Республики Татарстан"]
[null,171,"265001_17948182527_30","Муниципальное автономное общеобразовательное учреждение \"Гимназия №77\" г.Набережные Челны Республики Татарстан",17948182527,"Богомолов","Матвей","Данилович","м","30.05.2010","нет",7,7,7,16,8,19,9,59,null,null,95,null,null,"Ульянова Альбина Рустемовна","Муниципальное автономное общеобразовательное учреждение \"Гимназия №77\""]
[null,172,"261078_15857624511_30","Муниципальное автономное общеобразовательное учреждение \"Лицей №78 им. А.С. Пушкина\" г.Набережные Челны Республики Татарстан",15857624511,"Хабибрахманова","Алия","Рашитовна","ж","28.01.2010","нет",7,7,6,8,8,16,20,58,null,null,95,null,null,"Султанова Айгуль Азатовна","Муниципальное автономное общеобразовательное учреждение \"Лицей №78 им. А.С. Пушкина\""]
[null,173,"261078_15875248713_30","Муниципальное автономное общеобразовательное учреждение \"Лицей №78 им. А.С. Пушкина\" г.Набережные Челны Республики Татарстан",15875248713,"Вафин","Султан","Алмазович","м","12.12.2008","нет",8,8,6,9,7,15,20,57,null,null,95,null,null,"Моисенко Лилия Рахиловна","Муниципальное автономное общеобразовательное учреждение \"Лицей №78 им. А.С. Пушкина\""]
[null,174,"261078_17859280531_30","Муниципальное автономное общеобразовательное учреждение \"Лицей №78 им. А.С. Пушкина\" г.Набережные Челны Республики Татарстан",17859280531,"Колтунова","Екатерина","Сергеевна","ж","14.02.2010","нет",7,7,7,7,5,19,19,57,null,null,95,null,"Да","Зданович Нина Александровна","Муниципальное автономное общеобразовательное учреждение \"Лицей №78 им. А.С. Пушкина\""]
[null,175,"263054_16042429131_30","Муниципальное бюджетное общеобразовательное учреждение \"Гимназия №54\" г. Набережные Челны Республика Татарстан",16042429131,"Галиева","Камилла","Марселевна","ж","20.01.2009","нет",8,8,6,9,11,18,12,56,null,null,95,null,null,"Зямилова Эльвира Загитовна","Муниципальное бюджетное общеобразовательное учреждение \"Гимназия №54\" г. Набережные Челны Республика Татарстан"]
[null,176,"265001_15848086609_30","Муниципальное автономное общеобразовательное учреждение \"Гимназия №77\" г.Набережные Челны Республики Татарстан",15848086609,"Тимербаева","Лейла","Ильназовна","ж","29.05.2009","нет",8,8,7,10,4,14,20,55,null,null,95,null,null,"Минхаирова Гузель Газизовна","Муниципальное автономное общеобразовательное учреждение \"Гимназия №77\""]
[null,177,"261078_15842304462_30","Муниципальное автономное общеобразовательное учреждение \"Лицей №78 им. А.С. Пушкина\" г.Набережные Челны Республики Татарстан",15842304462,"Нестерова","Яна","Денисовна","ж","02.02.2010","нет",8,8,7,8,5,17,17,54,null,null,95,null,null,"Сарварова Зульфира Флуновна","Муниципальное автономное общеобразовательное учреждение \"Лицей №78 им. А.С. Пушкина\""]
[null,178,"261026_16990296221_30","Муниципальное бюджетное общеобразовательное учреждение \"Гимназия № 26\" г.Набережные Челны Республики Татарстан",16990296221,"Быкова","Алиса","Алексеевна","м","29.12.2009","нет",8,8,6,8,6,17,16,53,null,null,95,null,null,"Роденко Евгения Валерьевна","Муниципальное бюджетное общеобразовательное учреждение \"Гимназия № 26\" г.Набережные Челны Республики Татарстан"]
[null,179,"261036_17149955202_30","Муниципальное автономное общеобразовательное учреждение \"Лицей инновационных технологий №36\" г.Набережные Челны Республики Татарстан",17149955202,"Камалова","Камилла","Рустемовна","ж","16.06.2009","нет",8,8,7,10,4,18,14,53,null,null,95,null,null,"Зорина Ирина Витальевна","Муниципальное автономное общеобразовательное учреждение \"Лицей инновационных технологий №36\" г.Набережные Челны Республики Татарстан"]
[null,180,"263058_17145018544_30","Муниципальное бюджетное общеобразовательное учреждение \"Средняя общеобразовательная школа №58\" г.Набережные Челны Республики Татарстан",17145018544,"Галеев","Рустам","Маратович","м","20.05.2009","нет",8,8,7,7,10,13,16,53,null,null,95,null,null,"Прошута Ильмира Равилевна","Муниципальное бюджетное общеобразовательное учреждение \"Средняя общеобразовательная школа №58\""]
[null,181,"261076_16004131395_30","Муниципальное автономное общеобразовательное учреждение города Набережные Челны \"Гимназия №76\"",16004131395,"Данилова","Полина","Валерьевна","ж","30.04.2010","нет",7,7,6,7,3,18,18,52,null,null,95,null,null,"Кондылева Марина Сергеевна","Муниципальное автономное общеобразовательное учреждение города Набережные Челны \"Гимназия №76\""]
[null,182,"261036_17102641827_30","Муниципальное автономное общеобразовательное учреждение \"Лицей инновационных технологий №36\" г.Набережные Челны Республики Татарстан",17102641827,"Новокшонова","Владмира","Андреевна","ж","06.03.2010","нет",7,7,6,10,5,13,18,52,null,null,95,null,"Да","Гребенюк Наталья Петровна","Муниципальное автономное общеобразовательное учреждение \"Лицей инновационных технологий №36\" г.Набережные Челны Республики Татарстан"]
[null,183,"261061_17227826075_30","муниципальное автономное общеобразовательное учреждение \"Гимназия №61\" г.Набережные Челны",17227826075,"Каримов","Булат","Ильсурович","м","08.11.2009","нет",7,7,3,9,9,16,15,52,null,null,95,null,null,"Кузнецова Елена Игоревна","муниципальное автономное общеобразовательное учреждение \"Гимназия №61\" г.Набережные Челны"]
[null,184,"261031_15824362878_30","Муниципальное бюджетное общеобразовательное учреждение \"Средняя общеобразовательная школа №31 с углубленным изучением отдельных предметов\" г.Набережные Челны Республики Татарстан",15824362878,"Кандаурова","Софья","Андреевна","ж","15.11.2008","нет",8,8,7,11,12,16,6,52,null,null,95,null,null,"Щербакова Юлия Александровна","Муниципальное бюджетное общеобразовательное учреждение \"Средняя общеобразовательная школа №31 с углубленным изучением отдельных предметов\" г.Набережные Челны Республики Татарстан"]
[null,185,"265001_16254980080_30","Муниципальное автономное общеобразовательное учреждение \"Гимназия №77\" г.Набережные Челны Республики Татарстан",16254980080,"Перевозчиков","Руслан","Максимович","м","02.02.2009","нет",8,8,6,9,7,13,16,51,null,null,95,null,null,"Багаутдинова Альбина Марселевна","Муниципальное автономное общеобразовательное учреждение \"Гимназия №77\""]
[null,186,"261035_15773158493_30","Муниципальное автономное общеобразовательное учреждение города Набережные Челны \"Средняя общеобразовтельная школа №35 с углубленным изучением отдельных предметов\" Республики Татарстан",15773158493,"Гайнуллина","Эльвира","Азатовна","ж","07.07.2009","нет",8,8,6,12,6,17,10,51,null,null,95,null,null,"Багаутдинова Лилия Зуфаровна","Муниципальное автономное общеобразовательное учреждение города Набережные Челны \"Средняя общеобразовтельная школа №35 с углубленным изучением отдельных предметов\" Республики Татарстан"]
[null,187,"261057_17469582828_30","Муниципальное бюджетное общеобразовательное учреждение \"Центр образования - Гимназия №57 \"Притяжение\" г.Набережные Челны Республики Татарстан",17469582828,"Гараев","Камиль","Ильшатович","м","07.07.2009","нет",8,8,6,7,13,17,7,50,null,null,95,null,null,"Паранина Ольга Викторовна","Муниципальное бюджетное общеобразовательное учреждение \"Центр образования - Гимназия №57 \"Притяжение\""]
[null,188,"263018_19742178407_30","Муниципальное бюджетное общеобразовательное учреждение «Средняя общеобразовательная школа №18 с углубленным изучением отдельных предметов»",19742178407,"Глабчастый","Иван","Николаевич","м","01.10.2009","нет",8,8,5,12,13,14,6,50,null,null,95,null,null,"Мухаметзянова Чулпан Назировна","Муниципальное бюджетное общеобразовательное учреждение «Средняя общеобразовательная школа №18 с углубленным изучением отдельных предметов»"]
[null,189,"263002_17224134637_30","Муниципальное бюджетное общеобразовательное учреждение \"Гимназия №2 имени Мулланура Вахитова\" г.Набережные Челны Республики Татарстан",17224134637,"Хаматшина","Альназа","Ниязовна","ж","18.05.2009","нет",8,8,7,12,5,17,7,48,null,null,95,null,null,"Ризванова Гульшат Разифовна","Муниципальное бюджетное общеобразовательное учреждение \"Гимназия №2 имени Мулланура Вахитова\" г.Набережные Челны Республики Татарстан"]
[null,190,"265001_17804714079_30","Муниципальное автономное общеобразовательное учреждение \"Гимназия №77\" г.Набережные Челны Республики Татарстан",17804714079,"Шамсутдинова","Лилия","Рашитовна","ж","23.07.2009","нет",8,8,4,4,8,17,15,48,null,null,95,null,null,"Чуваева Людмила Анатольевна","Муниципальное автономное общеобразовательное учреждение \"Гимназия №77\""]
[null,191,"261078_16083972484_30","Муниципальное автономное общеобразовательное учреждение \"Лицей №78 им. А.С. Пушкина\" г.Набережные Челны Республики Татарстан",16083972484,"Янит","Юлия","Георгиевна","ж","16.05.2010","нет",7,7,7,5,5,13,17,47,null,null,95,null,"Да","Кремнева Алена Сергеевна","Муниципальное автономное общеобразовательное учреждение \"Лицей №78 им. А.С. Пушкина\""]
[null,192,"261032_17224126638_30","Муниципальное бюджетное общеобразовательное учреждение \"Средняя общеобразовательная школа № 32 с углубленным изучением отдельных предметов\" г.Набережные Челны Республики Татарстан",17224126638,"Биктимирова","Аделина","Рустемовна","ж","12.10.2009","нет",8,8,7,10,12,12,6,47,null,null,95,null,null,"Туркина Марина Юрьевна","Муниципальное бюджетное общеобразовательное учреждение \"Средняя общеобразовательная школа № 32 с углубленным изучением отдельных предметов\" г.Набережные Челны Республики Татарстан"]
[null,193,"261045_17389881742_30","Муниципальное бюджетное общеобразовательное учреждение \"Средняя общеобразовательная школа №45 с углубленным изучением отдельных предметов\" г.Набережные Челны Республики Татарстан",17389881742,"Смирнов","Богдан","Дмитриевич","м","06.12.2008","нет",8,8,6,8,6,15,12,47,null,null,95,null,null,"Нуретдинова Линара Ришатовна","Муниципальное бюджетное общеобразовательное учреждение \"Средняя общеобразовательная школа №45 с углубленным изучением отдельных предметов\" г.Набережные Челны Республики Татарстан"]
[null,194,"261076_17207842465_30","Муниципальное автономное общеобразовательное учреждение города Набережные Челны \"Гимназия №76\" г.Набережные Челны Республики Татарстан",17207842465,"Чурбанова","Софья","Алексеевна","ж","25.09.2009","нет",7,7,5,5,6,13,17,46,null,null,95,null,null,"Кондылева Марина Сергеевна","Муниципальное автономное общеобразовательное учреждение города Набережные Челны \"Гимназия №76\""]
[null,195,"261015_17430290853_30","Муниципальное автономное общеобразовательное учреждение города Набережные Челны \"Средняя общеобразовательная школа№15\" г.Набережные Челны Республики Татарстан",17430290853,"Бадрутдинова","Алия","Фоатовна","ж","24.12.2008","нет",8,8,6,6,3,13,18,46,null,null,95,null,null,"Латыпова Миляуша Юсуповна","Муниципальное автономное общеобразовательное учреждение города Набережные Челны \"Средняя общеобразовательная школа№15\""]
[null,196,"261041_16017401621_30","Муниципальное бюджетное общеобразовательное учреждение \" Средняя обшеобразовательная школа№ 41\" Набережные Челны Республики Татарстан",16017401621,"Рахматуллина","Ильзира","Ришатовна","ж","05.05.2009","нет",8,8,6,5,10,17,8,46,null,null,95,null,null,"Чистякова Наталья Александровна","Муниципальное бюджетное общеобразовательное учреждение \" Средняя обшеобразовательная школа№ 41\" Набережные челны Республики Татарстан"]
[null,197,"261057_17065465574_30","Муниципальное бюджетное общеобразовательное учреждение \"Центр образования - Гимназия №57 \"Притяжение\" г.Набережные Челны Республики Татарстан",17065465574,"Акинин","Артур","Игоревич","м","24.12.2008","нет",8,8,8,15,11,0,12,46,null,null,95,null,null,"Лышова Юлия Валерьевна","Муниципальное бюджетное общеобразовательное учреждение \"Центр образования - Гимназия №57 \"Притяжение\""]
[null,198,"261061_15885423610_30","муниципальное автономное общеобразовательное учреждение \"Гимназия №61\" г.Набережные Челны",15885423610,"Бакушин","Михаил","Викторович","м","14.05.2009","нет",8,8,5,6,8,13,14,46,null,null,95,null,null,"Охапкина Вера Александровна","муниципальное автономное общеобразовательное учреждение \"Гимназия №61\" г.Набережные Челны"]
[null,199,"261078_18848834848_30","Муниципальное автономное общеобразовательное учреждение \"Лицей №78 им. А.С. Пушкина\" г.Набережные Челны Республики Татарстан",18848834848,"Липатов","Артем","Олегович","м","23.07.2009","нет",8,8,6,16,7,17,null,46,null,null,95,null,null,"Сарварова Зульфира Флуновна","Муниципальное автономное общеобразовательное учреждение \"Лицей №78 им. А.С. Пушкина\""]
[null,200,"261009_17670917404_30","Муниципальное бюджетное образовательное учреждение «Средняя школа №9» г.Набережные Челны Республики Татарстан",17670917404,"Карамов","Дамир","Ленарович","м","11.06.2009","нет",8,8,5,7,6,11,16,45,null,null,95,null,null,"Мухутдинова Гузель Нургаязовна","Муниципальное бюджетное образовательное учреждение «Средняя школа №9»"]
[null,201,"261013_17247608579_30","Муниципальное бюджетное общеобразовательное учреждение «Средняя общеобразовательная школа № 13» г.Набережные Челны Республики Татарстан",17247608579,"Галиуллин","Артур","Давидович","м","28.02.2009","нет",8,8,7,12,2,11,13,45,null,null,95,null,null,"Иванов Алексей Дамирович","Муниципальное бюджетное общеобразовательное учреждение «Средняя общеобразовательная школа № 13»"]
[null,202,"261030_17149959210_30","Муниципальное бюджетное общеобразовательное учреждение \"Средняя общеобразовательная школа №30\" города Набережные Челны Республики Татарстан",17149959210,"Данилова","Виктория","Дмитриевна","ж","22.12.2009","нет",8,8,5,9,6,17,8,45,null,null,95,null,null,"Федорова Елена Леонидовна","Муниципальное бюджетное общеобразовательное учреждение \"Средняя общеобразовательная школа №30\" города Набережные Челны Республики Татарстан"]
[null,203,"261059_16873185814_30","Муниципальное бюджетное общеобразовательное учреждение «Полилингвальная гимназия № 59 «Адымнар-Чаллы»",16873185814,"Байков","Руслан","Рустамович","м","03.05.2010","нет",7,7,6,3,4,14,16,43,null,null,95,null,"Да","Лутфуллина Гулюза Магъфуровна","Муниципальное бюджетное общеобразовательное учреждение «Полилингвальная гимназия № 59 «Адымнар-Чаллы»"]
[null,204,"261037_16769157523_30","Муниципальное бюджетное общеобразовательное учреждение \"средняя общеобразовательная школа №37 с углубленным изучением отдельных предметов\" г.Набережные Челны Республики Татарстан",16769157523,"Масгутова","Диана","Робертовна","ж","16.09.2008","нет",7,7,6,10,4,12,11,43,null,null,95,null,null,"Магизова Сабина Талгатовна","Муниципальное бюджетное общеобразовательное учреждение \"средняя общеобразовательная школа №37 с углубленным изучением отдельных предметов\" г.Набережные Челны Республики Татарстан"]
[null,205,"261060_17832142775_30","муниципальное бюджетное общеобразовательное учреждение \"Средняя общеобразовательная школа №60\"",17832142775,"Трушкина","Яна","Руслановна","ж","27.10.2009","нет",8,8,7,8,13,15,0,43,null,null,95,null,null,"Кострюкова Регина Валерьевна","муниципальное бюджетное общеобразовательное учреждение \"Средняя общеобразовательная школа №60\""]
[null,206,"261056_17613377882_30","Муниципальное автономное общеобразовательное учреждение \"Средняя общеобразовательная школа №56\" г.Набережные Челны Республики Татарстан",17613377882,"Хакимова","Ульяна","Руслановна","ж","06.07.2009","нет",7,7,2,4,5,14,17,42,null,null,95,null,null,"Бадертдинова Ирина Петровна","Муниципальное автономное общеобразовательное учреждение \"Средняя общеобразовательная школа №56\" г.Набережные Челны Республики Татарстан"]
[null,207,"261027_17100133596_30","Муниципальное бюджетное общеобразовательное учреждение \"Средняя общеобразовательная школа №27\" г.Набережные Челны Республики Татарстан",17100133596,"Сотников","Александр","Алексеевич","м","24.05.2010","нет",7,7,7,7,5,15,8,42,null,null,95,null,null,"Корепова Жанна Ивановна","Муниципальное бюджетное общеобразовательное учреждение \"Средняя общеобразовательная школа №27\""]
[null,208,"261037_16734014963_30","Муниципальное бюджетное общеобразовательное учреждение \"средняя общеобразовательная школа №37 с углубленным изучением отдельных предметов\" г.Набережные Челны Республики Татарстан",16734014963,"Харасов","Данияр","Булатович","м","07.07.2010","нет",7,7,5,6,3,14,14,42,null,null,95,null,null,"Магизова Сабина Талгатовна","Муниципальное бюджетное общеобразовательное учреждение \"средняя общеобразовательная школа №37 с углубленным изучением отдельных предметов\" г.Набережные Челны Республики Татарстан"]
[null,209,"261016_19001846647_30","Муниципальное бюджетное общеобразовательное учреждение \"Средняя общеобразовательная школа \"Центр образования №16\" г.Набережные Челны Республики Татарстан",19001846647,"Ершов","Кирилл","Андреевич","м","18.08.2010","нет",7,7,5,9,0,15,13,42,null,null,95,null,null,"Николаева Алсу Ринатовна","Муниципальное бюджетное общеобразовательное учреждение \"Средняя общеобразовательная школа \"Центр образования №16\""]
[null,210,"261027_15885419518_30","Муниципальное бюджетное общеобразовательное учреждение \"Средняя общеобразовательная школа №27\" г.Набережные Челны Республики Татарстан",15885419518,"Сафиуллин","Арслан","Гинарович","м","29.01.2009","нет",8,8,7,16,12,0,7,42,null,null,95,null,null,"Корепова Жанна Ивановна","Муниципальное бюджетное общеобразовательное учреждение \"Средняя общеобразовательная школа №27\""]
[null,211,"261010_15511039122_30","Мунициапьное бюджетное общеобразовательное учреждение \"Средняя общеобразовательная школа №10\" г.Набережные Челны Республики Татарстан",15511039122,"Масимова","Лейла","Рахман кызы","ж","06.03.2009","нет",8,8,7,9,8,0,16,40,null,null,95,null,null,"Ананина Светлана Юрьевна","Мунициапьное бюджетное общеобразовательное учреждение \"Средняя общеобразовательная школа №10\""]
[null,212,"263052_17196792720_30","Муниципальное бюджетное общеобразовательное учреждение «Средняя общеобразовательная школа №52» города Набережные Челны Республики Татарстан",17196792720,"Гилазова","Раяна","Радиковна","ж","30.04.2009","нет",8,8,6,3,7,16,7,39,null,null,95,null,null,"Фаррахова Эльмира Ирековна","Муниципальное бюджетное общеобразовательное учреждение «Средняя общеобразовательная школа №52» города Набережные Челны Республики Татарстан"]
[null,213,"261046_17196789630_30","Муниципальное бюджетное общеобразовательное учреждение \"Средняя общеобразовательная школа №46 имени кавалера ордена Мужества Дмитрия Бадретдинова\" г. Набережные Челны",17196789630,"Захарова","Екатерина","Александровна","ж","21.08.2009","нет",8,8,6,19,14,0,null,39,null,null,95,null,null,"Калимуллина Гельсиня Талигатовна","Муниципальное бюджетное общеобразовательное учреждение \"Средняя общеобразовательная школа №46 имени кавалера ордена Мужества Дмитрия Бадретдинова\" г. Набережные Челны"]
[null,214,"261042_17548854926_30","Муниципальное бюджетное общеобразовательное учреждение \"Средняя общеобразовательная школа № 42\" г.Набережные Челны Республики Татарстан",17548854926,"Валеева","Амалия","Резвановна","ж","26.02.2009","нет",8,8,7,7,3,12,7,36,null,null,95,null,null,"Насыбуллина Альбина Альбертовна","Муниципальное бюджетное общеобразовательное учреждение \"Средняя общеобразовательная школа № 42\""]
[null,215,"261046_17248984110_30","Муниципальное бюджетное общеобразовательное учреждение \"Средняя общеобразовательная школа №46 имени кавалера ордена Мужества Дмитрия Бадретдинова\" г. Набережные Челны",17248984110,"Валеева","Диана","Эдуардовна","ж","03.03.2009","нет",8,8,6,17,6,0,7,36,null,null,95,null,"Да","Калимуллина Гельсиня Талигатовна","Муниципальное бюджетное общеобразовательное учреждение \"Средняя общеобразовательная школа №46 имени кавалера ордена Мужества Дмитрия Бадретдинова\" г. Набережные Челны"]
[null,216,"263084_17745505597_30","Муниципальное автономное общеобразовательное учреждение города Набережные Челны \"Лицей-интернат №84 имени Гали Акыша\" Республики Татарстан",17745505597,"Бадертдинова","Лейсан","Шамилевна","ж","24.12.2009","нет",7,7,3,2,4,10,14,33,null,null,95,null,null,"Муликова Светлана Файсаловна","Муниципальное автономное общеобразовательное учреждение города Набережные Челны \"Лицей-интернат №84 имени Гали Акыша\" Республики Татарстан"]
[null,217,"261019_16925834408_30","МБОУ \"Средняя общеобразовательная школа №19 с углубленным изучением отдельных предметов\" г.Набережные Челны Республики Татарстан",16925834408,"Тимерова","Зарина","Ильмировна","ж","14.05.2010","нет",7,7,5,5,3,0,18,{"$f":"SUM(N219:R219)","v":31},null,null,95,null,null,"Лазарева Алия Вагизовна","МБОУ \"Средняя общеобразовательная школа №19 с углубленным изучением отдельных предметов\""]
[null,218,"261051_18270812370_30","Муниципальное автономное общеобразовательное учреждение города Набережные Челны \"Средняя общеобразовательная школа №51\"",18270812370,"Морозов","Савва","Сергеевич","м","02.05.2009","нет",8,8,6,9,9,0,6,30,null,null,95,null,null,"Кустовская Татьяна Васильевна","Муниципальное автономное общеобразовательное учреждение города Набережные Челны \"Средняя общеобразовательная школа №51\""]
[null,219,"261033_15591858812_30","муниципальное бюджетное общеобразовательное учреждение \"Средняя общеобразовательная школа №33\" г. Набережные Челны",15591858812,"Батулин","Арсений","Андреевич","м","19.05.2009","нет",8,8,4,11,10,0,5,30,null,null,95,null,null,"Гизатуллина Гульназ Фаязовна","муниципальное бюджетное общеобразовательное учреждение \"Средняя общеобразовательная школа №33\" г. Набережные Челны"]
[null,220,"261019_16213298642_30","Муниципальное бюджетное общеобразовательное учреждение  \"Средняя общеобразовательная школа №19 с углубленным изучением отдельных предметов\"",16213298642,"Шарифуллина","Адиля","Радиковна","ж","13.02.2009","нет",8,8,3,5,5,9,7,29,null,null,95,null,null,"Лагуткина Ирина Викторовна","МБОУ \"Средняя общеобразовательная школа №19 с углубленным изучением отдельных предметов\""]
[null,221,"263029_17638237500_30","Муниципальное бюджетное общеобразовательное учреждение \"Гимназия №29\" г. Набережные Челны",17638237500,"Сабирзянова","Динара","Ильнуровна","ж","21.04.2009","нет",8,8,5,4,4,0,14,27,null,null,95,null,null,"Фазлеева Лиляна Мисхатовна","Муниципальное бюджетное общеобразовательное учреждение \"Гимназия №29\" г. Набережные Челны"]
[null,222,"261019_17623244275_30","Муниципальное бюджетное общеобразовательное учреждение  \"Средняя общеобразовательная школа №19 с углубленным изучением отдельных предметов\" г.Набережные Челны Республики Татарстан",17623244275,"Николаева","Валерия","Александровна","ж","28.06.2010","нет",7,7,6,0,3,14,3,26,null,null,95,null,null,"Мадоян Марлена Оганесовна","МБОУ \"Средняя общеобразовательная школа №19 с углубленным изучением отдельных предметов\""]
[null,223,"261059_17251010622_30","Муниципальное бюджетное общеобразовательное учреждение «Полилингвальная гимназия № 59 «Адымнар-Чаллы»",17251010622,"Ганиева","Камиля","Алмазовна","ж","24.06.2010","нет",7,7,5,9,6,0,6,26,null,null,95,null,null,"Гиззатова Лилия Фирдависовна","Муниципальное бюджетное общеобразовательное учреждение «Полилингвальная гимназия № 59 «Адымнар-Чаллы»"]
[null,224,"263084_17152196862_30","Муниципальное автономное общеобразовательное учреждение города Набережные Челны \"Лицей-интернат №84 имени Гали Акыша\" Республики Татарстан",17152196862,"Наумова","Алиса","Ильгизовна","ж","10.02.2010","нет",7,7,2,5,3,10,5,25,null,null,95,null,null,"Николаева Лилия Василовна","Муниципальное автономное общеобразовательное учреждение города Набережные Челны \"Лицей-интернат №84 имени Гали Акыша\" Республики Татарстан"]
[null,225,"261006_17745039392_30","Муниципальное бюджетное общеобразовательное учреждение \"Средняя общеобразовательная школа №6\"",17745039392,"Захурдаев","Михаил","Сергеевич","м","13.04.2010","нет",7,7,6,7,5,0,6,24,null,null,95,null,"Да","Литвинова Янина Вячеславовна","муниципальное бюджтеное общеобразовательное учреждение \"Средняя оьбщеобразовательная школа №6\""]
[null,226,"261019_17212363838_30","Муниципальное бюджетное общеобразовательное учреждение  \"Средняя общеобразовательная школа №19 с углубленным изучением отдельных предметов\"",17212363838,"Баландина","Анастасия","Леонидовна","ж","17.06.2010","нет",7,7,6,8,7,0,3,24,null,null,95,null,null,"Секунова Ирина Сергеевна","МБОУ \"Средняя общеобразовательная школа №19 с углубленным изучением отдельных предметов\""]
[null,227,"263079_15773851911_30","Муниципальное бюджетное общеобразовательное учреждение \"Лицей-интернат №79\"",15773851911,"Алчин","Ян","Дмитриевич","м","19.04.2009","нет",8,8,3,9,5,0,7,24,null,null,95,null,null,"Исаков Вадим Владимирович","Муниципальное бюджетное общеобразовательное учреждение \"Лицей-интернат №79\""]
[null,228,"261033_17152191549_30","муниципальное бюджетное общеобразовательное учреждение \"Средняя общеобразовательная школа №33\" г. Набережные Челны",17152191549,"Евстафьева","Анастасия","Олеговна","ж","18.06.2009","нет",8,8,6,4,5,0,9,24,null,null,95,null,null,"Тегляева Елена Михайловна","муниципальное бюджетное общеобразовательное учреждение \"Средняя общеобразовательная школа №33\" г. Набережные Челны"]
[null,229,"261082_17120090714_30","Государственное бюджетное общеобразовательное учреждение \"Кадетская школа №82 имени Героя Советского Союза Ильдара Маннанова\" г. Набережные Челны Республики Татарстан",17120090714,"Одинцов","Данила","Артёмович","м","25.04.2009","нет",8,8,2,8,3,9,null,22,null,null,95,null,null,"Нугманова Илюса Шаукатовна","Государственное бюджетное общеобразовательное учреждение \"Кадетская школа №82 имени Героя Советского Союза Ильдара Маннанова\" г. Набережные Челны Республики Татарстан"]
[null,230,"261037_16753848716_30","Муниципальное бюджетное общеобразовательное учреждение \"средняя общеобразовательная школа №37 с углубленным изучением отдельных предметов\" г.Набережные Челны Республики Татарстан",16753848716,"Гусева","Екатерина","Павловна","ж","07.07.2009","нет",8,8,4,9,4,0,3,20,null,null,95,null,null,"Мазитов Рамиль Рифович","Муниципальное бюджетное общеобразовательное учреждение \"средняя общеобразовательная школа №37 с углубленным изучением отдельных предметов\" г.Набережные Челны Республики Татарстан"]
[null,231,"263003_17206147644_30","Муниципальное бюджетное общеобразовательное учреждение \"Средняя общеобразовательная школа №3\" г.Набережные Челны Республики Татарстан",17206147644,"Юлуев","Камиль","Русланович","м","18.05.2010","нет",7,7,3,8,4,0,4,19,null,null,95,null,null,"Чернышева Лариса Владимировна","Муниципальное бюджетное общеобразовательное учреждение \"Средняя общеобразовательная школа №3\" г.Набережные Челны Республики Татарстан"]
[null,232,"261022_17247544986_30","Муниципальное бюджетное образовательное учреждение \"Средняя общеобразовательная школа№22\"",17247544986,"Сорокина","Аделина","Вадимовна","ж","15.11.2009","нет",8,8,4,8,5,0,0,17,null,null,95,null,null,"Федорова Олеся Юрьевна","Муниципальное бюджетное образовательное учреждение \"Средняя общеобразовательная школа№22\""]
[null,233,"261005_17254345062_30","Муниципальное бюджетное общеобразовательное учреждение \"Средняя общеобразовательная школа № 5\" г. Набережные Челны Республики Татарстан",17254345062,"Романенко","Артемий","Русланович","м","11.12.2009","нет",7,7,4,5,5,0,2,16,null,null,95,null,"Да","Тарасова Светлана Герасимовна","Муниципальное бюджетное общеобразовательное учреждение \"Средняя общеобразовательная школа № 5\" г. Набережные Челны Республики Татарстан"]
[null,234,"261005_16015919347_30","Муниципальное бюджетное общеобразовательное учреждение \"Средняя общеобразовательная школа № 5\" г. Набережные Челны Республики Татарстан",16015919347,"Самойлова","София","Николаевна","ж","14.05.2010","нет",7,7,1,6,6,0,2,15,null,null,95,null,"Да","Тарасова Светлана Герасимовна","Муниципальное бюджетное общеобразовательное учреждение \"Средняя общеобразовательная школа № 5\" г. Набережные Челны Республики Татарстан"]
[null,235,"261011_17120078222_30","Муниципальное бюджетное общеобразовательное учреждение «Средняя общеобразовательная школа № 11» г.Набережные Челны Республики Татарстан",17120078222,"Мареева","Ульяна","Андреевна","ж","08.06.2009","нет",8,8,3,2,3,0,7,15,null,null,95,null,null,"Ихсанова Айгуль Мухаметгалиевна","Муниципальное бюджетное общеобразовательное учреждение «Средняя общеобразовательная школа № 11»"]
[null,236,"261011_16931874709_30","Муниципальное бюджетное общеобразовательное учреждение «Средняя общеобразовательная школа № 11»",16931874709,"Шакирзянова","Нелли","Рафаэлевна","ж","26.11.2009","нет",8,8,3,4,3,0,5,15,null,null,95,null,null,"Ихсанова Айгуль Мухаметгалиевна","Муниципальное бюджетное общеобразовательное учреждение «Средняя общеобразовательная школа № 11»"]
[null,237,"261001_17563349597_30","Муниципальное автономное общеобразовательное учреждение \"Средняя общеобразовательная школа №1\" г.Набережные Челны Республики Татарстан",17563349597,"Филипова","Нелли","Рафиковна","ж","16.02.2010","нет",7,7,4,8,2,0,0,14,null,null,95,null,null,"Гизатуллина Айгуль Рафисовна","Муниципальное автономное общеобразовательное учреждение \"Средняя общеобразовательная школа №1\" г.Набережные Челны Республики Татарстан"]
[null,238,"263003_15745196897_30","Муниципальное бюджетное общеобразовательное учреждение \"Средняя общеобразовательная школа №3\" г.Набережные Челны Республики Татарстан",15745196897,"Борисова","Азалия","Вячеславовна","ж","09.12.2009","нет",7,7,6,8,0,0,0,14,null,null,95,null,null,"Чернышева Лариса Владимировна","Муниципальное бюджетное общеобразовательное учреждение \"Средняя общеобразовательная школа №3\" г.Набережные Челны Республики Татарстан"]
[null,239,"261013_17186156484_30","Муниципальное бюджетное общеобразовательное учреждение «Средняя общеобразовательная школа № 13» г.Набережные Челны Республики Татарстан",17186156484,"Игумнов","Илья","Денисович","м","05.07.2010","нет",7,7,3,6,4,0,0,13,null,null,95,null,null,"Иванов Алексей Дамирович","Муниципальное бюджетное общеобразовательное учреждение «Средняя общеобразовательная школа № 13»"]
[null,240,"261053_17134995062_30","Муниципальное бюджетное общеобразовательное учреждение «Средняя общеобразовательная школа № 53» г.Набережные Челны Республики Татарстан",17134995062,"Ильин","Алексей","Витальевич","м","2010-07-22","нет",7,7,2,5,3,0,2,12,null,null,95,null,null,"Хайбуллина Нурия Ахбаровна",53]
[null,241,"263003_15885801313_30","Муниципальное бюджетное общеобразовательное учреждение \"Средняя общеобразовательная школа №3\" г.Набережные Челны Республики Татарстан",15885801313,"Гильмутдинов","Карим","Айнурович","м","09.04.2010","нет",7,7,3,6,3,0,0,12,null,null,95,null,null,"Чернышева Лариса Владимировна","Муниципальное бюджетное общеобразовательное учреждение \"Средняя общеобразовательная школа №3\" г.Набережные Челны Республики Татарстан"]
[null,242,"261019_17124485659_30","Муниципальное бюджетное общеобразовательное учреждение \"Средняя общеобразовательная школа №19 с углубленным изучением отдельных предметов\"",17124485659,"Миндубаева","Ралина","Рафиковна","ж","01.03.2009","нет",8,8,1,5,3,0,0,9,null,null,95,null,null,"Секунова Ирина Сергеевна","МБОУ \"Средняя общеобразовательная школа №19 с углубленным изучением отдельных предметов\""]
[null,243,"261031_17127336758_30","Муниципальное бюджетное общеобразовательное учреждение \"Средняя общеобразовательная школа №31 с углубленным изучением отдельных предметов\" г.Набережные Челны Республики Татарстан",17127336758,"Сабирова","Сафина","Айдаровна","ж","31.05.2009","нет",8,8,5,3,1,0,null,9,null,null,95,null,null,"Гибадуллина Анна Сергеевна","Муниципальное бюджетное общеобразовательное учреждение \"Средняя общеобразовательная школа №31 с углубленным изучением отдельных предметов\" г.Набережные Челны Республики Татарстан"]
[null,244,"261028_17231184239_30","Муниципальное бюджетное образовательное учреждение \"Средняя общеобразовательная школа №28\" г.Набережные Челны Республики Татарстан",17231184239,"Гаврилова","Валерия","Борисовна","ж","11.07.2009","нет",8,8,5,1,2,0,0,8,null,null,95,null,null,"Муртазина Фируза Фаридовна","Муниципальное бюджетное образовательное учреждение \"Средняя общеобразовательная школа №28\""]
[null,245,"261021_17642957408_30","Муниципальное автономное общеобразовательное учреждение города Набережные Челны \"Средняя общеобразовательная школа №21\" г.Набережные Челны Республики Татарстан",17642957408,"Билалова","Лиана","Линаровна","ж","06.02.2009","нет",8,8,1,3,3,0,0,7,null,null,95,null,null,"Шайхаттарова Алина Ленаровна","Муниципальное автономное общеобразовательное учреждение города Набережные Челны \"Средняя общеобразовательная школа №21\""]
[null,246,"261039_15790182588_30","Муниципальное бюджетное общеобразовательное учреждение \"Средняя общеобразовательная школа №39\" г.Набережные Челны Республики Татарстан",15790182588,"Сарбаш","Ева","Сергеевна","ж","29.05.2009","нет",8,8,1,3,3,0,0,7,null,null,95,null,null,"Исмагилова Гульнара Ильнуровна","Муниципальное бюджетное общеобразовательное учреждение \"Средняя общеобразовательная школа №39\""]
[null,247,"261037_17117144642_30","Муниципальное бюджетное общеобразовательное учреждение \"средняя общеобразовательная школа №37 с углубленным изучением отдельных предметов\" г.Набережные Челны Республики Татарстан",17117144642,"Абубакирова","Элина","Раилевна","ж","12.11.2009","нет",8,8,2,4,1,0,0,7,null,null,95,null,null,"Мазитов Рамиль Рифович","Муниципальное бюджетное общеобразовательное учреждение \"средняя общеобразовательная школа №37 с углубленным изучением отдельных предметов\" г.Набережные Челны Республики Татарстан"]
[null,248,"261028_17041002098_30","Муниципальное бюджетное образовательное учреждение \"Средняя общеобразовательная школа №28\" г.Набережные Челны Республики Татарстан",17041002098,"Новикова","Алиса","Александровна","ж","23.05.2010","нет",7,7,2,0,2,0,0,4,null,null,95,null,null,"Карагезова Эллада Харлампиевна","Муниципальное бюджетное образовательное учреждение \"Средняя общеобразовательная школа №28\""]
[null,249,"261013_18138632983_30","Муниципальное бюджетное общеобразовательное учреждение «Средняя общеобразовательная школа № 13» г.Набережные Челны Республики Татарстан",18138632983,"Нурхаметов","Рамазан","Фанисович","м","25.11.2008","нет",8,8,1,2,0,0,null,3,null,null,95,null,null,"Хуснеева Сабина Ильшатовна","Муниципальное бюджетное общеобразовательное учреждение «Средняя общеобразовательная школа № 13»"]
[null,250,"261057_15953118281_30","Муниципальное бюджетное общеобразовательное учреждение \"Центр образования - Гимназия №57 \"Притяжение\"",15953118281,"Желтякова","Камилла","Александровна","ж","08.02.2007","нет",10,10,13,13,33,25,20,104,null,null,110,null,"да","Саубанова Миляуша Мударисовна","Муниципальное бюджетное общеобразовательное учреждение \"Центр образования - Гимназия №57 \"Притяжение\""]
[null,251,"261036_14816271972_30","Муниципальное автономное общеобразовательное учреждение \"Лицей инновационных технологий №36\" г.Набережные Челны Республики Татарстан",14816271972,"Васькова","Дарья","Денисовна","ж","14.06.2006","нет",11,11,13,10,32,25,19,99,null,null,110,null,null,"Гребенюк Наталья Петровна","Муниципальное автономное общеобразовательное учреждение \"Лицей инновационных технологий №36\" г.Набережные Челны Республики Татарстан"]
[null,252,"265001_14268990497_30","Муниципальное автономное общеобразовательное учреждение \"Гимназия №77\"",14268990497,"Гарипова","Эльза","Геннадьевна","ж","07.12.2005","нет",11,11,13,11,34,21,20,99,null,null,110,null,null,"Минхаирова Гузель Газизовга","Муниципальное автономное общеобразовательное учреждение \"Гимназия №77\""]
[null,253,"261078_15977860340_30","Муниципальное автономное общеобразовательное учреждение \"Лицей №78 им. А.С. Пушкина\"",15977860340,"Хайруллин","Амир","Эрикович","м","25.12.2005","нет",11,11,13,12,34,20,20,99,null,null,110,null,null,"Зданович Нина Александровна","Муниципальное автономное общеобразовательное учреждение \"Лицей №78 им. А.С. Пушкина\""]
[null,254,"261078_15977852644_30","Муниципальное автономное общеобразовательное учреждение \"Лицей №78 им. А.С. Пушкина\"",15977852644,"Ильдарова","София","Андреевна","ж","08.01.2007","нет",10,10,13,13,30,22,20,98,null,null,110,null,null,"Зданович Нина Александровна","Муниципальное автономное общеобразовательное учреждение \"Лицей №78 им. А.С. Пушкина\""]
[null,255,"261078_16357527284_30","Муниципальное автономное общеобразовательное учреждение \"Лицей №78 им. А.С. Пушкина\"",16357527284,"Шамсутдинова","Азалия","Рашитовна","ж","22.02.2007","нет",10,10,13,10,30,25,20,98,null,null,110,null,null,"Зданович Нина Александровна","Муниципальное автономное общеобразовательное учреждение \"Лицей №78 им. А.С. Пушкина\""]
[null,256,"261036_16048640561_30","Муниципальное автономное общеобразовательное учреждение \"Лицей инновационных технологий №36\" г.Набережные Челны Республики Татарстан",16048640561,"Якупов","Даниил","Русланович","м","20.05.2006","нет",11,11,13,12,34,21,18,98,null,null,110,null,null,"Гребенюк Наталья Петровна","Муниципальное автономное общеобразовательное учреждение \"Лицей инновационных технологий №36\" г.Набережные Челны Республики Татарстан"]
[null,257,"261076_16043629043_30","Муниципальное автономное общеобразовательное учреждение города Набережные Челны \"Гимназия №76\"",16043629043,"Ахметова","Лейла","Ролановна","ж","09.04.2006","нет",11,11,13,13,27,22,20,95,null,null,110,null,null,"Сычугова Елена Вячеславовна","Муниципальное автономное общеобразовательное учреждение города Набережные Челны \"Гимназия №76\""]
[null,258,"261078_14828177996_30","Муниципальное автономное общеобразовательное учреждение \"Лицей №78 им. А.С. Пушкина\"",14828177996,"Нурмеева","Аделя","Рустамовна","ж","01.09.2007","нет",10,10,13,12,26,25,16,92,null,null,110,null,null,"Зданович Нина Александровна","Муниципальное автономное общеобразовательное учреждение \"Лицей №78 им. А.С. Пушкина\""]
[null,259,"263079_15960488507_30","Муниципальное бюджетное общеобразовательное учреждение \"Лицей-интернат №79\"",15960488507,"Аль-Утейшан","Мишаль","Абдулхаким","м","30.10.2005","нет",11,11,12,13,14,26,20,85,null,null,110,null,null,"Нуриев Рустем Райнурович","Муниципальное бюджетное общеобразовательное учреждение \"Лицей-интернат №79\""]
[null,260,"263079_16219031840_30","Муниципальное бюджетное общеобразовательное учреждение \"Лицей-интернат №79\"",16219031840,"Хайруллин","Амирхан","Маратович","м","23.02.2008","нет",9,9,11,9,19,23,20,82,null,null,110,null,null,"Исаков Вадим Владимирович","Муниципальное бюджетное общеобразовательное учреждение \"Лицей-интернат №79\""]
[null,261,"261056_18088669322_30","Муниципальное автономное общеобразовательное учреждение \"Средняя общеобразовательная школа №56\" г.Набережные Челны Республики Татарстан",18088669322,"Кутаранова","Амелия","Маратовна","ж","06.01.2007","нет",9,9,13,12,27,14,15,81,null,null,110,null,null,"Габдрахманова Регина Ильгизовна","Муниципальное автономное общеобразовательное учреждение \"Средняя общеобразовательная школа №56\" г.Набережные Челны Республики Татарстан"]
[null,262,"261076_15965519517_30","Муниципальное автономное общеобразовательное учреждение города Набережные Челны \"Гимназия №76\"",15965519517,"Тронина","Каролина","Артемовна","ж","12.04.2006","нет",11,11,13,11,15,21,20,80,null,null,110,null,null,"Сычугова Елена Вячеславовна","Муниципальное автономное общеобразовательное учреждение города Набережные Челны \"Гимназия №76\""]
[null,263,"261026_14797763837_30","Муниципальное бюджетное общеобразовательное учреждение \"Гимназия № 26\" г.Набережные Челны Республики Татарстан",14797763837,"Базардинов","Марат","Марселевич","м","12.09.2007","нет",10,10,12,11,15,23,18,79,null,null,110,null,null,"Есина Наталья Валерьевна","Муниципальное бюджетное общеобразовательное учреждение \"Гимназия № 26\" г.Набережные Челны Республики Татарстан"]
[null,264,"261057_16264003032_30","Муниципальное бюджетное общеобразовательное учреждение \"Центр образования - Гимназия №57 \"Притяжение\"",16264003032,"Сурхаева","Зулейха","Вагифовна","ж","15.02.2007","нет",10,10,13,13,22,18,13,79,null,null,110,null,null,"Гимадиева Люция Маликовна","Муниципальное бюджетное общеобразовательное учреждение \"Центр образования - Гимназия №57 \"Притяжение\""]
[null,265,"261056_15960489004_30","Муниципальное автономное общеобразовательное учреждение \"Средняя общеобразовательная школа №56\" г.Набережные Челны Республики Татарстан",15960489004,"Бакирова","Диана","Айдаровна","ж","13.03.2006","нет",11,11,12,13,13,20,20,78,null,null,110,null,null,"Бадертдинова Ирина Петровна","Муниципальное автономное общеобразовательное учреждение \"Средняя общеобразовательная школа №56\" г.Набережные Челны Республики Татарстан"]
[null,266,"261076_15882754416_30","Муниципальное автономное общеобразовательное учреждение города Набережные Челны \"Гимназия №76\"",15882754416,"Суфиярова","Алина","Салаватовна","ж","05.10.2006","нет",10,10,13,12,15,18,20,78,null,null,110,null,null,"Кондылева Марина Сергеевна","Муниципальное автономное общеобразовательное учреждение города Набережные Челны \"Гимназия №76\""]
[null,267,"261076_16052522430_30","Муниципальное автономное общеобразовательное учреждение города Набережные Челны \"Гимназия №76\"",16052522430,"Мухаметшина","Камилла","Ильдаровна","ж","24.06.2007","нет",10,10,13,12,8,24,18,75,null,null,110,null,null,"Кондылева Марина Сергеевна","Муниципальное автономное общеобразовательное учреждение города Набережные Челны \"Гимназия №76\""]
[null,268,"261078_16010900604_30","Муниципальное автономное общеобразовательное учреждение \"Лицей №78 им. А.С. Пушкина\"",16010900604,"Николаева","Анастасия","Васильевна","ж","03.04.2008","нет",9,9,13,11,18,24,8,74,null,null,110,null,"да","Моисенко Лилия Рахиловна","Муниципальное автономное общеобразовательное учреждение \"Лицей №78 им. А.С. Пушкина\""]
[null,269,"2610476_16043650236_30","Муниципальное автономное общеобразовательное учреждение города Набережные Челны \"Гимназия №76\"",16043650236,"Гизатуллина ","Аделина","Ренатовна","ж","2007-01-17","нет",10,10,13,10,13,16,20,72,null,null,110,null,null,"Кондылева Марина Сергеевна","Муниципальное автономное общеобразовательное учреждение города Набережные Челны \"Гимназия №76\""]
[null,270,"261078_16486602999_30","Муниципальное автономное общеобразовательное учреждение \"Лицей №78 им. А.С. Пушкина\"",16486602999,"Идиятуллина","Зульфия","Рамиловна","ж","29.12.2007","нет",9,9,13,14,15,20,10,72,null,null,110,null,null,"Минсафина Искра Аликовна","Муниципальное автономное общеобразовательное учреждение \"Лицей №78 им. А.С. Пушкина\""]
[null,271,"261061_16211225308_30","муниципальное автономное общеобразовательное учреждение \"Гимназия №61\" г.Набережные Челны",16211225308,"Мингалиева","Лия","Ниязовна","ж","18.07.2006","нет",11,11,4,10,16,21,20,71,null,null,110,null,"да","Кириллова Наталья Ивановна","муниципальное автономное общеобразовательное учреждение \"Гимназия №61\" г.Набережные Челны"]
[null,272,"261008_16894291729_30","Муниципальное бюджетное общеобразовательное учреждение \"Средняя общеобразовательная школа №8\" города Набережные Челны Республики Татарстан",16894291729,"Утробин","Данил","Сергеевич","м","20.05.2008","нет",9,9,12,8,12,21,18,71,null,null,110,null,null,"Фатыхова Эльвира Ильдаровна","Муниципальное бюджетное общеобразовательное учреждение \"Средняя общеобразовательная школа №8\" города Набережные Челны Республики Татарстан"]
[null,273,"261057_15982328305_30","Муниципальное бюджетное общеобразовательное учреждение \"Центр образования - Гимназия №57 \"Притяжение\"",15982328305,"Шайхутдинова","Карина","Ильдаровна","ж","12.10.2006","нет",11,11,13,15,3,20,20,71,null,null,110,null,null,"Саубанова Миляуша Мударисовна","Муниципальное бюджетное общеобразовательное учреждение \"Центр образования - Гимназия №57 \"Притяжение\""]
[null,274,"261076_15963957531_30","Муниципальное автономное общеобразовательное учреждение города Набережные Челны \"Гимназия №76\"",15963957531,"Шарифуллина","Алия","Радиковна","ж","11.05.2007","нет",10,10,8,8,20,17,18,71,null,null,110,null,null,"Кондылева Марина Сергеевна","Муниципальное автономное общеобразовательное учреждение города Набережные Челны \"Гимназия №76\""]
[null,275,"261013_15954146594_30","Муниципальное бюджетное общеобразовательное учреждение «Средняя общеобразовательная школа № 13»",15954146594,"Герасимов","Максим","Владимирович","м","26.06.2005","нет",11,11,9,6,14,22,19,70,null,null,110,null,null,"Михлеева Елена Васильевна","Муниципальное бюджетное общеобразовательное учреждение «Средняя общеобразовательная школа № 13»"]
[null,276,"261050_15994208715_30","Муниципальное автономное общеобразовательное учреждение города Набережные Челны «Средняя общеобразовательная школа №50 с углубленным изучением отдельных предметов» Республики Татарстан",15994208715,"Замалиев","Эмиль","Линарович","м","05.05.2006","нет",11,11,12,7,11,22,17,69,null,null,110,null,null,"Юнусова Елена Евгеньевна","Муниципальное автономное общеобразовательное учреждение города Набережные Челны «Средняя общеобразовательная школа №50 с углубленным изучением отдельных предметов» Республики Татарстан"]
[null,277,"261037_15940435171_30","Муниципальное бюджетное общеобразовательное учреждение \"средняя общеобразовательная школа №37 с углубленным изучением отдельных предметов\" г.Набережные Челны Республики Татарстан",15940435171,"Кравченко","Никита","Михайлович","м","13.11.2005","нет",11,11,11,7,10,23,18,69,null,null,110,null,null,"Мазитов Рамиль Рифович","Муниципальное бюджетное общеобразовательное учреждение \"средняя общеобразовательная школа №37 с углубленным изучением отдельных предметов\" г.Набережные Челны Республики Татарстан"]
[null,278,"261039_17017114525_30","Муниципальное бюджетное общеобразовательное учреждение \"Средняя общеобразовательная школа №39\"",17017114525,"Вахрушева","Лидия","Евгеньевна","ж","10.06.2007","нет",10,10,12,6,15,19,16,68,null,null,110,null,null,"Чернова Гульнара Фатхинуровна","Муниципальное бюджетное общеобразовательное учреждение \"Средняя общеобразовательная школа №39\""]
[null,279,"261061_16224171130_30","муниципальное автономное общеобразовательное учреждение \"Гимназия №61\" г.Набережные Челны",16224171130,"Баркалова","Елизавета","Анатольевна","ж","04.03.2008","нет",9,9,9,12,10,18,18,67,null,null,110,null,null,"Кузнецова Елена Игоревна","муниципальное автономное общеобразовательное учреждение \"Гимназия №61\" г.Набережные Челны"]
[null,280,"261059_16208681060_30","Муниципальное бюджетное общеобразовательное учреждение «Полилингвальная гимназия № 59 «Адымнар-Чаллы»",16208681060,"Самойлова","Эмилия","Ивановна","ж","31.03.2008","нет",9,9,11,12,10,15,19,67,null,null,110,null,"да","Динисламова Азалия Ильгизовна","Муниципальное бюджетное общеобразовательное учреждение «Полилингвальная гимназия № 59 «Адымнар-Чаллы»"]
[null,281,"261026_15940447380_30","Муниципальное бюджетное общеобразовательное учреждение \"Гимназия № 26\" г.Набережные Челны Республики Татарстан",15940447380,"Хафизова","Аделина","Наилевна","ж","13.10.2006","нет",10,10,11,14,7,21,14,{"$f":"SUM(N283:R283)","v":67},null,null,110,null,null,"Есина Наталья Валерьевна","Муниципальное бюджетное общеобразовательное учреждение \"Гимназия № 26\" г.Набережные Челны Республики Татарстан"]
[null,282,"261060_15992570419_30","муниципальное бюджетное общеобразовательное учреждение \"Средняя общеобразовательная школа №60\"",15992570419,"Зильбер","Арина","Евгеньевна","ж","20.03.2007","нет",10,10,8,4,19,18,17,66,null,null,110,null,null,"Кострюкова Регина Валерьевна","муниципальное бюджетное общеобразовательное учреждение \"Средняя общеобразовательная школа №60\""]
[null,283,"261078_15902077864_30","Муниципальное автономное общеобразовательное учреждение \"Лицей №78 им. А.С. Пушкина\"",15902077864,"Сычева","Александра","Александровна","ж","08.11.2007","нет",9,9,10,2,15,21,18,66,null,null,110,null,null,"Радуга Анастасия Маулитовна","Муниципальное автономное общеобразовательное учреждение \"Лицей №78 им. А.С. Пушкина\""]
[null,284,"261025_16088461282_30","Муниципальное бюджетное общеобразовательное учреждение \"Средняя общеобразовательная школа № 25\" г. Набережные Челны Республики Татарстан",16088461282,"Еремеев","Никита","Александрович","м","24.11.2005","нет",11,11,11,8,8,20,18,65,null,null,110,null,null,"Иванова Эльвира Рифгатьевна","Муниципальное бюджетное общеобразовательное учреждение \"Средняя общеобразовательная школа № 25\" г. Набережные Челны Республики Татарстан"]
[null,285,"265001_16112456527_30","Муниципальное автономное общеобразовательное учреждение \"Гимназия №77\"",16112456527,"Микалина","Карина","Радиковна","ж","02.09.2006","нет",11,11,13,12,3,21,16,65,null,null,110,null,null,"Минхаирова Гузель Газизовга","Муниципальное автономное общеобразовательное учреждение \"Гимназия №77\""]
[null,286,"263058_14979713228_30","Муниципальное бюджетное общеобразовательное учреждение \"Средняя общеобразовательная школа №58\"",14979713228,"Хасанов","Ленар","Ильшатович","м","10.11.2007","нет",10,10,9,12,2,24,18,65,null,null,110,null,null,"Прошута Ильмира Равилевна","Муниципальное бюджетное общеобразовательное учреждение \"Средняя общеобразовательная школа №58\""]
[null,287,"261041_15994216209_30","Муниципальное бюджетное общеобразовательное учреждение \" Средняя обшеобразовательная школа№ 41\" Набережные челны Республики Татарстан",15994216209,"Кириченко","Анна","Ивановна","ж","28.11.2006","нет",11,11,10,8,6,22,18,64,null,null,110,null,null,"Салимгараева Алсу Рафхэтовна","Муниципальное бюджетное общеобразовательное учреждение \" Средняя обшеобразовательная школа№ 41\" Набережные челны Республики Татарстан"]
[null,288,"261036_17635741091_30","Муниципальное автономное общеобразовательное учреждение \"Лицей инновационных технологий №36\" г.Набережные Челны Республики Татарстан",17635741091,"Крючкова","Лариса","Дмитриевна","ж","06.06.2006","нет",11,11,12,12,2,22,16,64,null,null,110,null,null,"Зорина Ирина Витальевна","Муниципальное автономное общеобразовательное учреждение \"Лицей инновационных технологий №36\" г.Набережные Челны Республики Татарстан"]
[null,289,"261076_15915052465_30","Муниципальное автономное общеобразовательное учреждение города Набережные Челны \"Гимназия №76\"",15915052465,"Митюков","Михаил","Николаевич","м","17.01.2006","нет",11,11,9,11,4,20,20,64,null,null,110,null,null,"Сычугова Елена Вячеславовна","Муниципальное автономное общеобразовательное учреждение города Набережные Челны \"Гимназия №76\""]
[null,290,"261026_14837903899_30","Муниципальное бюджетное общеобразовательное учреждение \"Гимназия № 26\" г.Набережные Челны Республики Татарстан",14837903899,"Гараева","Алсу","Айнуровна","ж","02.07.2007","нет",10,10,9,9,6,21,18,63,null,null,110,null,null,"Есина Наталья Валерьевна","Муниципальное бюджетное общеобразовательное учреждение \"Гимназия № 26\" г.Набережные Челны Республики Татарстан"]
[null,291,"261078_15960382693_30","Муниципальное автономное общеобразовательное учреждение \"Лицей №78 им. А.С. Пушкина\"",15960382693,"Кузнецова","Дарья","Александровна","ж","23.06.2007","нет",10,10,9,10,10,18,16,63,null,null,110,null,null,"Зданович Нина Александровна","Муниципальное автономное общеобразовательное учреждение \"Лицей №78 им. А.С. Пушкина\""]
[null,292,"261006_16042184026_30","муниципальное бюджтеное общеобразовательное учреждение \"Средняя оьбщеобразовательная школа №6\"",16042184026,"Шеломенцева","Надежда","Дмитриевна","ж","16.09.2006","нет",11,11,9,7,5,21,20,62,null,null,110,null,null,"Литвинова Янина Вячеславовна","муниципальное бюджтеное общеобразовательное учреждение \"Средняя оьбщеобразовательная школа №6\""]
[null,293,"261026_16259620883_30","Муниципальное бюджетное общеобразовательное учреждение \"Гимназия № 26\" г.Набережные Челны Республики Татарстан",16259620883,"Гафарова","Есения","Рустемовна","ж","28.04.2008","нет",9,9,10,10,0,21,20,61,null,null,110,null,null,"Есина Наталья Валерьевна","Муниципальное бюджетное общеобразовательное учреждение \"Гимназия № 26\" г.Набережные Челны Республики Татарстан"]
[null,294,"261078_16288074592_30","Муниципальное автономное общеобразовательное учреждение \"Лицей №78 им. А.С. Пушкина\"",16288074592,"Ягуфарова","Рената","Владиславовна","ж","23.12.2007","нет",9,9,13,14,4,13,17,61,null,null,110,null,null,"Шайдуллина Ландыш Миннафиковна","Муниципальное автономное общеобразовательное учреждение \"Лицей №78 им. А.С. Пушкина\""]
[null,295,"261026_15954084295_30","Муниципальное бюджетное общеобразовательное учреждение \"Гимназия № 26\" г.Набережные Челны Республики Татарстан",15954084295,"Яхин","Амир","Маратович","м","23.03.2007","нет",10,10,9,9,4,21,18,61,null,null,110,null,null,"Есина Наталья Валерьевна","Муниципальное бюджетное общеобразовательное учреждение \"Гимназия № 26\" г.Набережные Челны Республики Татарстан"]
[null,296,"261010_15963994032_30","Мунициапьное бюджетное общеобразовательное учреждение \"Средняя общеобразовательная школа №10\"",15963994032,"Мустафина","Александра","Олеговна","ж","28.05.2006","нет",11,11,13,7,9,19,12,60,null,null,110,null,null,"Ананина Светлана Юрьевна","Мунициапьное бюджетное общеобразовательное учреждение \"Средняя общеобразовательная школа №10\""]
[null,297,"261045_19319626599_30","Муниципальное бюджетное общеобразовательное учреждение \"Средняя общеобразовательная школа №45 с углубленным изучением отдельных предметов\" г.Набережные Челны Республики Татарстан",19319626599,"Розанова","Екатерина","Эдуардовна","ж","13.02.2006","нет",11,11,9,10,4,22,15,60,null,null,110,null,null,"Ахметзянова Лариса Александровна","Муниципальное бюджетное общеобразовательное учреждение \"Средняя общеобразовательная школа №45 с углубленным изучением отдельных предметов\" г.Набережные Челны Республики Татарстан"]
[null,298,"261046_16265947497_30","Муниципальное бюджетное общеобразовательное учреждение \"Средняя общеобразовательная школа №46 имени кавалера ордена Мужества Дмитрия Бадретдинова\" г. Набережные Челны",16265947497,"Шамилов","Иван","Сергеевич","м","28.01.2008","нет",9,9,11,11,6,16,16,60,null,null,110,null,null,"Миркина Лидия Геннадьевна","Муниципальное бюджетное общеобразовательное учреждение \"Средняя общеобразовательная школа №46 имени кавалера ордена Мужества Дмитрия Бадретдинова\" г. Набережные Челны"]
[null,299,"261059_16239184372_30","Муниципальное бюджетное общеобразовательное учреждение «Полилингвальная гимназия № 59 «Адымнар-Чаллы»",16239184372,"Шинкарюк","Алиса","Валерьевна","ж","01.02.2008","нет",9,9,12,7,3,19,19,60,null,null,110,null,null,"Динисламова Азалия Ильгизовна","Муниципальное бюджетное общеобразовательное учреждение «Полилингвальная гимназия № 59 «Адымнар-Чаллы»"]
[null,300,"261005_17552447384_30","Муниципальное бюджетное общеобразовательное учреждение \"Средняя общеобразовательная школа № 5\" г. Набережные Челны Республики Татарстан",17552447384,"Набиуллин","Амир","Артурович","м","15.08.2006","нет",11,11,5,10,8,21,15,59,null,null,110,null,null,"Тарасова Светлана Герасимовна","Муниципальное бюджетное общеобразовательное учреждение \"Средняя общеобразовательная школа № 5\" г. Набережные Челны Республики Татарстан"]
[null,301,"261023_15949262110_30","Муниципальное бюджетное общеобразовательное учреждение \"Средняя общеобразовательная школа №23\" г.Набережные Челны Республики Татарстан",15949262110,"Игнатьев","Илья","Денисович","м","16.04.2006","нет",11,11,7,8,9,17,17,58,null,null,110,null,null,"Логунова Наталья Михайловна","Муниципальное бюджетное общеобразовательное учреждение \"Средняя общеобразовательная школа №23\" г.Набережные Челны Республики Татарстан"]
[null,302,"265001_17547660504_30","Муниципальное автономное общеобразовательное учреждение \"Гимназия №77\"",17547660504,"Файрушин","Тимур","Айдарович","м","09.02.2008","нет",9,9,6,7,7,19,18,57,null,null,110,null,null,"Багаутдинова Альбина Марселевна","Муниципальное автономное общеобразовательное учреждение \"Гимназия №77\""]
[null,303,"261076_1710743424_30","Муниципальное автономное общеобразовательное учреждение города Набережные Челны \"Гимназия №76\"",17107434241,"Тимошев","Дамир","Вильданович","м","2007-07-09","нет",10,10,6,9,8,19,15,57,null,null,110,null,null,"Гимадиева Лилия Ракиповна","Муниципальное автономное общеобразовательное учреждение города Набережные Челны \"Гимназия №76\""]
[null,304,"261046_17129983195_30","Муниципальное бюджетное общеобразовательное учреждение \"Средняя общеобразовательная школа №46 имени кавалера ордена Мужества Дмитрия Бадретдинова\" г. Набережные Челны",17129983195,"Юминова","Марина","Олеговна","ж","27.12.2007","нет",9,9,13,12,2,20,9,56,null,null,110,null,null,"Хабибуллина Рузиля Масабиховна","Муниципальное бюджетное общеобразовательное учреждение \"Средняя общеобразовательная школа №46 имени кавалера ордена Мужества Дмитрия Бадретдинова\" г. Набережные Челны"]
[null,305,"265001_14833774591_30","Муниципальное автономное общеобразовательное учреждение \"Гимназия №77\"",14833774591,"Казаченко","Дарья","Михайловна","ж","18.05.2007","нет",10,10,9,6,5,18,17,55,null,null,110,null,null,"Чуваева Людмила Анатольевна","Муниципальное автономное общеобразовательное учреждение \"Гимназия №77\""]
[null,306,"261061_17303530938_30","муниципальное автономное общеобразовательное учреждение \"Гимназия №61\" г.Набережные Челны",17303530938,"Басырова","Жасмин","Радиковна","ж","10.09.2008","нет",9,9,7,4,4,19,20,54,null,null,110,null,null,"Кузнецова Елена Игоревна","муниципальное автономное общеобразовательное учреждение \"Гимназия №61\" г.Набережные Челны"]
[null,307,"261076_14559286801_30","Муниципальное автономное общеобразовательное учреждение города Набережные Челны \"Гимназия №76\"",14559286801,"Залялетдинов","Руслан","Рустамович","м","17.02.2007","нет",10,10,13,2,24,0,15,54,null,null,110,null,null,"Гимадиева Лилия Ракиповна","Муниципальное автономное общеобразовательное учреждение города Набережные Челны \"Гимназия №76\""]
[null,308,"261059_17184361879_30","Муниципальное бюджетное общеобразовательное учреждение «Полилингвальная гимназия № 59 «Адымнар-Чаллы»",17184361879,"Лагановский","Глеб","Евгеньевич","м","21.07.2008","нет",9,9,7,8,1,20,18,54,null,null,110,null,null,"Динисламова Азалия Ильгизовна","Муниципальное бюджетное общеобразовательное учреждение «Полилингвальная гимназия № 59 «Адымнар-Чаллы»"]
[null,309,"261036_17215855672_30","Муниципальное автономное общеобразовательное учреждение \"Лицей инновационных технологий №36\" г.Набережные Челны Республики Татарстан",17215855672,"Лапаева","Арина","Константиновна","ж","29.04.2008","нет",9,9,10,8,1,20,15,54,null,null,110,null,null,"Гребенюк Наталья Петровна","Муниципальное автономное общеобразовательное учреждение \"Лицей инновационных технологий №36\" г.Набережные Челны Республики Татарстан"]
[null,310,"261035_16219040740_30","Муниципальное автономное общеобразовательное учреждение города Набережные Челны \"Средняя общеобразовтельная школа №35 с углубленным изучением отдельных предметов\" Республики Татарстан",16219040740,"Гумеров","Илья","Александрович","м","07.02.2007","нет",10,10,10,5,3,18,17,53,null,null,110,null,null,"Левандян Галина Николаевна","Муниципальное автономное общеобразовательное учреждение города Набережные Челны \"Средняя общеобразовтельная школа №35 с углубленным изучением отдельных предметов\" Республики Татарстан"]
[null,311,"263012_16048647117_30","Муниципальное бюджетное общеобразовательное учреждение \"Средняя общеобразовательная школа №12\" города Набережные Челны Республики Татарстан",16048647117,"Киляшов","Егор","Витальевич","м","29.12.2006","нет",10,10,12,13,13,0,15,53,null,null,110,null,null,"Гарипова Лейсан Халимовна","Муниципальное бюджетное общеобразовательное учреждение \"Средняя общеобразовательная школа №12\" города Набережные Челны Республики Татарстан"]
[null,312,"261055_15915079889_30","Муниципальное автономное общеобразовательное учреждение города Набережные Челны \"Средняя общеобразовательная школа №55\"",15915079889,"Нигматуллина","Зарина","Алмазовна","ж","28.03.2007","нет",10,10,9,7,0,17,20,53,null,null,110,null,null,"Мороз Оксана Алексеевна","Муниципальное автономное общеобразовательное учреждение города Набережные Челны \"Средняя общеобразовательная школа №55\""]
[null,313,"265001_15949145106_30","Муниципальное автономное общеобразовательное учреждение \"Гимназия №77\"",15949145106,"Гадеев","Данис","Ильфатович","м","03.11.2006","нет",10,10,8,7,0,20,17,52,null,null,110,null,null,"Гарипова Василя Гайнутдиновна","Муниципальное автономное общеобразовательное учреждение \"Гимназия №77\""]
[null,314,"261033_16041696351_30","муниципальное бюджетное общеобразовательное учреждение \"Средняя общеобразовательная школа №33\" г. Набережные Челны",16041696351,"Непейвода","Дмитрий","Ильич","м","03.04.2006","нет",11,11,11,9,3,16,13,52,null,null,110,null,null,"Гизатуллина Гульназ Фаязовна","муниципальное бюджетное общеобразовательное учреждение \"Средняя общеобразовательная школа №33\" г. Набережные Челны"]
[null,315,"261078_15960744095_30","Муниципальное автономное общеобразовательное учреждение \"Лицей №78 им. А.С. Пушкина\"",15960744095,"Мустафина","Наиля","Наилевна","ж","22.08.2006","нет",11,11,6,7,0,20,18,51,null,null,110,null,null,"Зданович Нина Александровна","Муниципальное автономное общеобразовательное учреждение \"Лицей №78 им. А.С. Пушкина\""]
[null,316,"261057_14857908517_30","Муниципальное бюджетное общеобразовательное учреждение \"Центр образования - Гимназия №57 \"Притяжение\"",14857908517,"Акулова","Карина","Рустемовна","ж","08.11.2007","нет",10,10,11,7,2,18,12,50,null,null,110,null,null,"Саубанова Миляуша Мударисовна","Муниципальное бюджетное общеобразовательное учреждение \"Центр образования - Гимназия №57 \"Притяжение\""]
[null,317,"261078_17380725885_30","Муниципальное автономное общеобразовательное учреждение \"Лицей №78 им. А.С. Пушкина\"",17380725885,"Прокофьева","Диана","Степановна","ж","18.11.2006","нет",10,10,6,8,1,21,14,50,null,null,110,null,null,"Зданович Нина Александровна","Муниципальное автономное общеобразовательное учреждение \"Лицей №78 им. А.С. Пушкина\""]
[null,318,"261037_16191103032_30","Муниципальное бюджетное общеобразовательное учреждение \"средняя общеобразовательная школа №37 с углубленным изучением отдельных предметов\" г.Набережные Челны Республики Татарстан",16191103032,"Хисматуллина","Эвелина","Маратовна","ж","07.10.2008","нет",9,9,7,5,2,18,18,50,null,null,110,null,null,"Магизова Сабина Талгатовна","Муниципальное бюджетное общеобразовательное учреждение \"средняя общеобразовательная школа №37 с углубленным изучением отдельных предметов\" г.Набережные Челны Республики Татарстан"]
[null,319,"261041_15960459096_30","Муниципальное бюджетное общеобразовательное учреждение \" Средняя обшеобразовательная школа№ 41\" Набережные челны Республики Татарстан",15960459096,"Самигуллина","Альмира","Альбертовна","ж","19.11.2006","нет",11,11,8,6,1,16,18,49,null,null,110,null,null,"Салимгараева Алсу Рафхэтовна","Муниципальное бюджетное общеобразовательное учреждение \" Средняя обшеобразовательная школа№ 41\" Набережные челны Республики Татарстан"]
[null,320,"261078_16194426475_30","Муниципальное автономное общеобразовательное учреждение \"Лицей №78 им. А.С. Пушкина\"",16194426475,"Ситдиков","Амир","Рафаэлевич","м","19.12.2007","нет",10,10,12,2,0,18,17,49,null,null,110,null,null,"Кремнева Алена Сергеевна","Муниципальное автономное общеобразовательное учреждение \"Лицей №78 им. А.С. Пушкина\""]
[null,321,"261061_15917475503_30","муниципальное автономное общеобразовательное учреждение \"Гимназия №61\" г.Набережные Челны",15917475503,"Гилязева","Амина","Динаровна","ж","06.07.2007","нет",10,10,10,10,13,0,15,48,null,null,110,null,null,"Охапкина Вера Александровна","муниципальное автономное общеобразовательное учреждение \"Гимназия №61\" г.Набережные Челны"]
[null,322,"261078_14715689490_30","Муниципальное автономное общеобразовательное учреждение \"Лицей №78 им. А.С. Пушкина\"",14715689490,"Попова","Ксения","Евгеньевна","ж","01.06.2007","нет",10,10,7,6,0,20,15,48,null,null,110,null,null,"Кремнева Алена Сергеевна","Муниципальное автономное общеобразовательное учреждение \"Лицей №78 им. А.С. Пушкина\""]
[null,323,"261036_15976410809_30","Муниципальное автономное общеобразовательное учреждение \"Лицей инновационных технологий №36\" г.Набережные Челны Республики Татарстан",15976410809,"Рогожкина","Маргарита","Николаевна","ж","14.01.2006","нет",11,11,11,5,0,15,17,48,null,null,110,null,null,"Зорина Ирина Витальевна","Муниципальное автономное общеобразовательное учреждение \"Лицей инновационных технологий №36\" г.Набережные Челны Республики Татарстан"]
[null,324,"265001_18063793589_30","Муниципальное автономное общеобразовательное учреждение \"Гимназия №77\"",18063793589,"Мусин","Тимур","Азатович","м","14.05.2008","нет",9,9,9,10,13,0,15,47,null,null,110,null,null,"Багаутдинова Альбина Марселевна","Муниципальное автономное общеобразовательное учреждение \"Гимназия №77\""]
[null,325,"261031_15976455831_30","Муниципальное бюджетное общеобразовательное учреждение \"Средняя общеобразовательная школа №31 с углубленным изучением отдельных предметов\" г.Набережные Челны Республики Татарстан",15976455831,"Пырма","Ангелина","Рушановна","ж","15.06.2006","нет",11,11,11,10,0,12,13,46,null,null,110,null,null,"Щербакова Юлия Александровна","Муниципальное бюджетное общеобразовательное учреждение \"Средняя общеобразовательная школа №31 с углубленным изучением отдельных предметов\" г.Набережные Челны Республики Татарстан"]
[null,326,"263018_14987736539_30","Муниципальное бюджетное общеобразовательное учреждение «Средняя общеобразовательная школа №18 с углубленным изучением отдельных предметов»",14987736539,"Шакиров","Артур","Ралифович","м","04.04.2006","нет",11,11,8,11,8,0,19,46,null,null,110,null,null,"Мухаметзянова Чулпан Назировна","Муниципальное бюджетное общеобразовательное учреждение «Средняя общеобразовательная школа №18 с углубленным изучением отдельных предметов»"]
[null,327,"261044_16613428562_30","Муниципальное бюджетное общеобразовательное учреждение \"Средняя общеобразовательная школа №44 с углубленным изучением отдельных предметов\"",16613428562,"Шайдуллина","Гузель","Артуровна","ж","22.03.2007","нет",10,10,9,8,0,14,15,46,null,null,110,null,null,"Галилеева Людмила Алексеевна","Муниципальное бюджетное общеобразовательное учреждение \"Средняя общеобразовательная школа №44 с углубленным изучением отдельных предметов\""]
[null,328,"261037_17061142732_30","Муниципальное бюджетное общеобразовательное учреждение \"средняя общеобразовательная школа №37 с углубленным изучением отдельных предметов\" г.Набережные Челны Республики Татарстан",17061142732,"Мифтахова","Дина","Фанисовна","ж","26.04.2008","нет",9,9,11,2,0,15,17,45,null,null,110,null,null,"Магизова Сабина Талгатовна","Муниципальное бюджетное общеобразовательное учреждение \"средняя общеобразовательная школа №37 с углубленным изучением отдельных предметов\" г.Набережные Челны Республики Татарстан"]
[null,329,"263058_15963903104_30","Муниципальное бюджетное общеобразовательное учреждение \"Средняя общеобразовательная школа №58\"",15963903104,"Янова","Регина","Ивановна","ж","12.04.2006","нет",11,11,6,5,4,13,17,45,null,null,110,null,null,"Габдуллина Светлана Наилевна","Муниципальное бюджетное общеобразовательное учреждение \"Средняя общеобразовательная школа №58\""]
[null,330,"261013_17086670693_30","Муниципальное бюджетное общеобразовательное учреждение «Средняя общеобразовательная школа № 13»",17086670693,"Галай","Роберт","Сергеевич","м","14.03.2008","нет",9,9,10,11,10,0,13,44,null,null,110,null,null,"Михлеева Елена Васильевна","Муниципальное бюджетное общеобразовательное учреждение «Средняя общеобразовательная школа № 13»"]
[null,331,"261021_15970028075_30","Муниципальное автономное общеобразовательное учреждение города Набережные Челны \"Средняя общеобразовательная школа №21\"",15970028075,"Кежеватова","Алиса","Сергеевна","ж","04.09.2006","нет",11,11,10,0,1,19,14,44,null,null,110,null,null,"Воеводина Елена Алексеевна","Муниципальное автономное общеобразовательное учреждение города Набережные Челны \"Средняя общеобразовательная школа №21\""]
[null,332,"261036_15973714309_30","Муниципальное автономное общеобразовательное учреждение \"Лицей инновационных технологий №36\" г.Набережные Челны Республики Татарстан",15973714309,"Сазонова","Валерия","Юрьевна","ж","03.08.2007","нет",10,10,7,6,1,13,17,44,null,null,110,null,null,"Зорина Ирина Витальевна","Муниципальное автономное общеобразовательное учреждение \"Лицей инновационных технологий №36\" г.Набережные Челны Республики Татарстан"]
[null,333,"261019_15929543106_30","МБОУ \"Средняя общеобразовательная школа №19 с углубленным изучением отдельных предметов\"",15929543106,"Хусаинов","Артур","Ильшатович","м","18.08.2006","нет",11,11,10,6,0,9,19,44,null,null,110,null,null,"Лазарева Алия Вагизовна","МБОУ \"Средняя общеобразовательная школа №19 с углубленным изучением отдельных предметов\""]
[null,334,"261032_17072800452_30","Муниципальное бюджетное общеобразовательное учреждение \"Средняя общеобразовательная школа № 32 с углубленным изучением отдельных предметов\" г.Набережные Челны Республики Татарстан",17072800452,"Василов","Ренат","Рустемович","м","14.05.2006","нет",11,11,11,8,9,0,14,42,null,null,110,null,null,"Шураева Ирина Валерьевна","Муниципальное бюджетное общеобразовательное учреждение \"Средняя общеобразовательная школа № 32 с углубленным изучением отдельных предметов\" г.Набережные Челны Республики Татарстан"]
[null,335,"261048_16497959142_30","Муниципальное автономное общеобразовательное учреждение г.Набережные Челны «Средняя общеобразовательная школа №48» Республики Татарстан",16497959142,"Кремлёв","Алексей","Станиславович","м","04.01.2007","нет",10,10,9,11,7,0,15,42,null,null,110,null,null,"Пантина Земфира Халимовна","Муниципальное автономное общеобразовательное учреждение г.Набережные Челны «Средняя общеобразовательная школа №48» Республики Татарстан"]
[null,336,"261010_14846611786_30","Мунициапьное бюджетное общеобразовательное учреждение \"Средняя общеобразовательная школа №10\"",14846611786,"Воробьев","Александр","Сергеевич","м","13.08.2007","нет",10,10,10,8,4,0,19,41,null,null,110,null,null,"Ананина Светлана Юрьевна","Мунициапьное бюджетное общеобразовательное учреждение \"Средняя общеобразовательная школа №10\""]
[null,337,"261037_16108180637_30","Муниципальное бюджетное общеобразовательное учреждение \"средняя общеобразовательная школа №37 с углубленным изучением отдельных предметов\" г.Набережные Челны Республики Татарстан",16108180637,"Гыйздатуллина","Амалия","Рашидовна","ж","23.02.2007","нет",10,10,6,2,16,17,null,41,null,null,110,null,null,"Мазитов Рамиль Рифович","Муниципальное бюджетное общеобразовательное учреждение \"средняя общеобразовательная школа №37 с углубленным изучением отдельных предметов\" г.Набережные Челны Республики Татарстан"]
[null,338,"261039_15982324499_30","Муниципальное бюджетное общеобразовательное учреждение \"Средняя общеобразовательная школа №39\"",15982324499,"Шумилкина","Лиана","Олеговна","ж","26.02.2006","нет",11,11,9,10,6,0,16,41,null,null,110,null,null,"Гимадиева Лидия Вячеславовна","Муниципальное бюджетное общеобразовательное учреждение \"Средняя общеобразовательная школа №39\""]
[null,339,"261056_15976875752_30","Муниципальное автономное общеобразовательное учреждение \"Средняя общеобразовательная школа №56\" г.Набережные Челны Республики Татарстан",15976875752,"Волнухин","Константин","Дмитриевич","м","26.06.2006","нет",11,11,11,9,4,0,16,40,null,null,110,null,null,"Бадертдинова Ирина Петровна","Муниципальное автономное общеобразовательное учреждение \"Средняя общеобразовательная школа №56\" г.Набережные Челны Республики Татарстан"]
[null,340,"263002_15414674762_30","Муниципальное бюджетное общеобразовательное учреждение \"Гимназия №2 имени Мулланура Вахитова\" г.Набережные Челны Республики Татарстан",15414674762,"Сабирова","Алина","Эдуардовна","ж","10.08.2008","нет",9,9,7,5,0,16,12,40,null,null,110,null,null,"Маврина Рузиля Сагировна","Муниципальное бюджетное общеобразовательное учреждение \"Гимназия №2 имени Мулланура Вахитова\" г.Набережные Челны Республики Татарстан"]
[null,341,"261078_16055815763_30","Муниципальное автономное общеобразовательное учреждение \"Лицей №78 им. А.С. Пушкина\"",16055815763,"Столбова","Аделина","Евгеньевна","ж","21.05.2006","нет",11,11,10,8,5,0,17,40,null,null,110,null,null,"Зданович Нина Александровна","Муниципальное автономное общеобразовательное учреждение \"Лицей №78 им. А.С. Пушкина\""]
[null,342,"261019_16020553211_30","Муниципальное бюджетное общеобразовательное учреждение \"Средняя общеобразовательная школа №19 с углубленным изучением отдельных предметов\"",16020553211,"Атаджанова","Аделина","Алишеровна","ж","23.12.2006","нет",10,10,6,4,0,14,15,39,null,null,110,null,null,"Мадоян Марлена Оганесовна","МБОУ \"Средняя общеобразовательная школа №19 с углубленным изучением отдельных предметов\""]
[null,343,"261035_15967845843_30","Муниципальное автономное общеобразовательное учреждение города Набережные Челны \"Средняя общеобразовтельная школа №35 с углубленным изучением отдельных предметов\" Республики Татарстан",15967845843,"Туряница","Екатерина","Васильевна","ж","18.03.2007","нет",10,10,7,4,0,17,11,39,null,null,110,null,null,"Левандян Галина Николаевна","Муниципальное автономное общеобразовательное учреждение города Набережные Челны \"Средняя общеобразовтельная школа №35 с углубленным изучением отдельных предметов\" Республики Татарстан"]
[null,344,"261048_14874741706_30","Муниципальное автономное общеобразовательное учреждение г.Набережные Челны «Средняя общеобразовательная школа №48» Республики Татарстан",14874741706,"Тихонов","Лев","Алексеевич","м","25.01.2007","нет",10,10,12,9,3,0,12,36,null,null,110,null,null,"Пантина Земфира Халимовна","Муниципальное автономное общеобразовательное учреждение г.Набережные Челны «Средняя общеобразовательная школа №48» Республики Татарстан"]
[null,345,"261053_19593645736_30","Муниципальное бюджетное общеобразовательное учреждение \"Средняя общеобразовательная школа №53\" г.Набережные Челны Республики Татарстан",19593645736,"Авдалян","Арпине","Рустамовна","ж","11.03.2007","нет",10,10,7,6,0,13,9,{"$f":"SUM(N347:R347)","v":35},null,null,110,null,null,"Мустафина Фаниса Фанисовна","Муниципальное бюджетное общеобразовательное учреждение \"Средняя общеобразовательная школа №53\" г.Набережные Челны Республики Татарстан"]
[null,346,"261050_16219040235_30","Муниципальное автономное общеобразовательное учреждение города Набережные Челны «Средняя общеобразовательная школа №50 с углубленным изучением отдельных предметов» Республики Татарстан",16219040235,"Хасаншин","Ильнур","Инсафович","м","28.03.2006","нет",11,11,8,8,1,0,18,35,null,null,110,null,null,"Юнусова Елена Евгеньевна","Муниципальное автономное общеобразовательное учреждение города Набережные Челны «Средняя общеобразовательная школа №50 с углубленным изучением отдельных предметов» Республики Татарстан"]
[null,347,"263003_14530749960_30","Муниципальное бюджетное общеобразовательное учреждение \"Средняя общеобразовательная школа №3\" г.Набережные Челны Республики Татарстан",14530749960,"Зинатуллина","Алия","Гаптулловна","ж","02.02.2007","нет",10,10,12,10,0,11,2,35,null,null,110,null,null,"Чернышева Лариса Владимировна","Муниципальное бюджетное общеобразовательное учреждение \"Средняя общеобразовательная школа №3\" г.Набережные Челны Республики Татарстан"]
[null,348,"261051_14709243060_30","Муниципальное автономное общеобразовательное учреждение города Набережные Челны \"Средняя общеобразовательная школа №51\"",14709243060,"Сулейманова","Камилла","Жавдатовна","ж","27.07.2007","нет",9,9,10,3,0,21,0,34,null,null,110,null,null,"Парьянова Аюна Саяновна","Муниципальное автономное общеобразовательное учреждение города Набережные Челны \"Средняя общеобразовательная школа №51\""]
[null,349,"261076_16239183875_30","Муниципальное автономное общеобразовательное учреждение города Набережные Челны \"Гимназия №76\"",16239183875,"Товстокор","Владимир","Русланович","м","15.05.2008","нет",9,9,8,7,1,18,null,34,null,null,110,null,null,"Бушуева Анна Сергеевна","Муниципальное автономное общеобразовательное учреждение города Набережные Челны \"Гимназия №76\""]
[null,350,"261056_17912451177_30","Муниципальное автономное общеобразовательное учреждение \"Средняя общеобразовательная школа №56\" г.Набережные Челны Республики Татарстан",17912451177,"Исламов","Альберт","Анфакович","м","18.01.2007","нет",10,10,7,12,1,0,13,33,null,null,110,null,null,"Бадертдинова Ирина Петровна","Муниципальное автономное общеобразовательное учреждение \"Средняя общеобразовательная школа №56\" г.Набережные Челны Республики Татарстан"]
[null,351,"261076_16486604599_30","Муниципальное автономное общеобразовательное учреждение города Набережные Челны \"Гимназия №76\"",16486604599,"Родыгина","Екатерина","Павловна","ж","28.01.2008","нет",9,9,7,5,1,0,20,33,null,null,110,null,null,"Куклина Софья Алексеевна","Муниципальное автономное общеобразовательное учреждение города Набережные Челны \"Гимназия №76\""]
[null,352,"263054_17127334855_30","Муниципальное бюджетное общеобразовательное учреждение \"Гимназия №54\" г. Набережные Челны Республика Татарстан",17127334855,"Бадретдинова","Элина","Ильнуровна","ж","08.07.2006","нет",11,11,7,4,0,0,20,31,null,null,110,null,null,"Закирова Земфира Габдульяновна","Муниципальное бюджетное общеобразовательное учреждение \"Гимназия №54\" г. Набережные Челны Республика Татарстан"]
[null,353,"263052_17438231675_30","Муниципальное бюджетное общеобразовательное учреждение «Средняя общеобразовательная школа №52» города Набережные Челны Республики Татарстан",17438231675,"Новиков","Марат","Алексеевич","м","11.10.2008","нет",9,9,8,4,1,0,18,31,null,null,110,null,null,"Фаррахова Эльмира Ирековна","Муниципальное бюджетное общеобразовательное учреждение «Средняя общеобразовательная школа №52» города Набережные Челны Республики Татарстан"]
[null,354,"261021_16043609441_30","Муниципальное автономное общеобразовательное учреждение города Набережные Челны \"Средняя общеобразовательная школа №21\"",16043609441,"Ахмадиева","Эвелина","Линаровна","ж","03.07.2006","нет",11,11,7,6,3,0,14,30,null,null,110,null,null,"Воеводина Елена Алексеевна","Муниципальное автономное общеобразовательное учреждение города Набережные Челны \"Средняя общеобразовательная школа №21\""]
[null,355,"261011_17328035359_30","Муниципальное бюджетное общеобразовательное учреждение «Средняя общеобразовательная школа № 11»",17328035359,"Кузнецова","Айна","Станиславовна","ж","17.11.2007","нет",10,10,11,8,0,0,10,29,null,null,110,null,null,"Ихсанова Айгуль Мухаметгалиевна","Муниципальное бюджетное общеобразовательное учреждение «Средняя общеобразовательная школа № 11»"]
[null,356,"261005_15809755304_30","Муниципальное бюджетное общеобразовательное учреждение \"Средняя общеобразовательная школа № 5\" г. Набережные Челны Республики Татарстан",15809755304,"Гараева","Луиза","Ильнуровна","ж","30.08.2008","нет",9,9,1,4,0,13,10,28,null,null,110,null,null,"Тарасова Светлана Герасимовна","Муниципальное бюджетное общеобразовательное учреждение \"Средняя общеобразовательная школа № 5\" г. Набережные Челны Республики Татарстан"]
[null,357,"265001_16002634007_30","Муниципальное автономное общеобразовательное учреждение \"Гимназия №77\"",16002634007,"Машкова","Инна","Владиславовна","ж","22.01.2006","нет",11,11,9,4,0,0,15,28,null,null,110,null,null,"Гарипова Василя Гайнутдиновна","Муниципальное автономное общеобразовательное учреждение \"Гимназия №77\""]
[null,358,"261021_19044989102_30","Муниципальное автономное общеобразовательное учреждение города Набережные Челны \"Средняя общеобразовательная школа №21\"",19044989102,"Рябов","Богдан","Дмитриевич","м","09.03.2008","нет",9,9,9,6,0,0,12,27,null,null,110,null,null,"Вихрева Лилия Ахатовна","Муниципальное автономное общеобразовательное учреждение города Набережные Челны \"Средняя общеобразовательная школа №21\""]
[null,359,"261019_15883323899_30","Муниципальное бюджетное общеобразовательное учреждение  \"Средняя общеобразовательная школа №19 с углубленным изучением отдельных предметов\"",15883323899,"Харрасов","Алмаз","Фаязович","м","22.06.2008","нет",9,9,8,6,1,0,12,27,null,null,110,null,null,"Лазарева Алия Вагизовна","МБОУ \"Средняя общеобразовательная школа №19 с углубленным изучением отдельных предметов\""]
[null,360,"261053_19198274623_30","Муниципальное бюджетное общеобразовательное учреждение \"Средняя общеобразовательная школа №53\" г.Набережные Челны Республики Татарстан",19198274623,"Авдалян","Тигран","Аликович","м","01.01.2006","нет",11,11,7,3,0,0,16,26,null,null,110,null,null,"Мустафина Фаниса Фанисовна","Муниципальное бюджетное общеобразовательное учреждение \"Средняя общеобразовательная школа №53\" г.Набережные Челны Республики Татарстан"]
[null,361,"261053_15875257613_30","Муниципальное бюджетное общеобразовательное учреждение \"Средняя общеобразовательная школа №53\" г.Набережные Челны Республики Татарстан",15875257613,"Ефимова","Снежана","Александровна","ж","16.08.2007","нет",9,9,8,4,0,13,null,25,null,null,110,null,null,"Архипова Марина Айдаровна","Муниципальное бюджетное общеобразовательное учреждение \"Средняя общеобразовательная школа №53\" г.Набережные Челны Республики Татарстан"]
[null,362,"261015_17526237072_30","Муниципальное автономное общеобразовательное учреждение города Набережные Челны \"Средняя общеобразовательная школа№15\"",17526237072,"Мохирева","Регина","Андреевна","ж","20.06.2007","нет",10,10,7,6,0,12,0,25,null,null,110,null,null,"Арюкова Вера Наилевна","Муниципальное автономное общеобразовательное учреждение города Набережные Челны \"Средняя общеобразовательная школа№15\""]
[null,363,"261009_17802474378_30","Муниципальное бюджетное образовательное учреждение «Средняя школа №9»",17802474378,"Будылева","Елизавета","Евгеньевна","ж","15.04.2006","нет",11,11,6,3,0,15,0,24,null,null,110,null,null,"Мухутдинова Гузель Нургаязовна","Муниципальное бюджетное образовательное учреждение «Средняя школа №9»"]
[null,364,"261019_18389240611_30","Муниципальное бюджетное общеобразовательное учреждение  \"Средняя общеобразовательная школа №19 с углубленным изучением отдельных предметов\"",18389240611,"Богомолова","Ева","Анатольевна","ж","08.03.2007","нет",11,11,9,6,0,0,8,23,null,null,110,null,null,"Лазарева Алия Вагизовна","МБОУ \"Средняя общеобразовательная школа №19 с углубленным изучением отдельных предметов\""]
[null,365,"261082_17014651334_30","Государственное бюджетное общеобразовательное учреждение \"Кадетская школа №82 имени Героя Советского Союза Ильдара Маннанова\" г. Набережные Челны Республики Татарстан",17014651334,"Месропян","Джанник","Арсеньевич","м","18.08.2008","нет",9,9,6,2,0,0,15,23,null,null,110,null,null,"Алюнис Лейла Шамилевна","Государственное бюджетное общеобразовательное учреждение \"Кадетская школа №82 имени Героя Советского Союза Ильдара Маннанова\" г. Набережные Челны Республики Татарстан"]
[null,366,"263003_17864717424_30","Муниципальное бюджетное общеобразовательное учреждение \"Средняя общеобразовательная школа №3\" г.Набережные Челны Республики Татарстан",17864717424,"Садыкова","Камилла","Ильдаровна","ж","01.04.2008","нет",9,9,9,6,1,0,6,22,null,null,110,null,null,"Щербакова Лидия Сергеевна","Муниципальное бюджетное общеобразовательное учреждение \"Средняя общеобразовательная школа №3\" г.Набережные Челны Республики Татарстан"]
[null,367,"261027_17152190749_30","Муниципальное бюджетное общеобразовательное учреждение \"Средняя общеобразовательная школа №27\"",17152190749,"Елкина","Эмилия","Сергеевна","ж","07.11.2008","нет",9,9,7,3,0,0,11,21,null,null,110,null,null,"Корепова Жанна Ивановна","Муниципальное бюджетное общеобразовательное учреждение \"Средняя общеобразовательная школа №27\""]
[null,368,"261030_16008331019_30","Муниципальное бюджетное общеобразовательное учреждение \"Средняя общеобразовательная школа №30\" города Набережные Челны Республики Татарстан",16008331019,"Тимошевская","Александра","Дмитриевна","ж","28.01.2007","нет",10,10,11,8,0,0,0,19,null,null,110,null,null,"Безденежных Нина Валерьевна","Муниципальное бюджетное общеобразовательное учреждение \"Средняя общеобразовательная школа №30\" города Набережные Челны Республики Татарстан"]
[null,369,"261022_14874732100_30","Муниципальное бюджетное образовательное учреждение \"Средняя общеобразовательная школа№22\"",14874732100,"Белавин","Данила","Михайлович","м","03.10.2007","нет",10,10,7,6,0,0,null,13,null,null,110,null,null,"Фадеева Наталья Сергеевна","Муниципальное бюджетное образовательное учреждение \"Средняя общеобразовательная школа№22\""]
[null,370,"261046_16742838839_30","Муниципальное бюджетное общеобразовательное учреждение \"Средняя общеобразовательная школа №46 имени кавалера ордена Мужества Дмитрия Бадретдинова\" г. Набережные Челны",16742838839,"Адутова","Аделина","Андреевна","ж","24.01.2007","нет",10,10,9,3,0,0,0,12,null,null,110,null,null,"Миркина Лидия Геннадьевна","Муниципальное бюджетное общеобразовательное учреждение \"Средняя общеобразовательная школа №46 имени кавалера ордена Мужества Дмитрия Бадретдинова\" г. Набережные Челны"]
[null,371,"261051_16043611933_30","Муниципальное автономное общеобразовательное учреждение города Набережные Челны \"Средняя общеобразовательная школа №51\"",16043611933,"Галеева","Амира","Радиковна","ж","08.03.2007","нет",9,9,7,4,0,0,null,11,null,null,110,null,null,"Парьянова Аюна Саяновна","Муниципальное автономное общеобразовательное учреждение города Набережные Челны \"Средняя общеобразовательная школа №51\""]
[null,372,"261019_14840043745_30","Муниципальное бюджетное общеобразовательное учреждение \"Средняя общеобразовательная школа №19 с углубленным изучением отдельных предметов\"",14840043745,"Горячева","Вера","Александровна","ж","14.09.2007","нет",10,10,1,3,0,0,7,11,null,null,110,null,null,"Лагуткина Ирина Викторовна","МБОУ \"Средняя общеобразовательная школа №19 с углубленным изучением отдельных предметов\""]
[null,373,"261019_16043609845_30","Муниципальное бюджетное общеобразовательное учреждение   \"Средняя общеобразовательная школа №19 с углубленным изучением отдельных предметов\"",16043609845,"Ахметшина","Аделя","Румилевна","ж","03.04.2007","нет",10,10,5,2,0,0,2,9,null,null,110,null,null,"Лагуткина Ирина Викторовна","МБОУ \"Средняя общеобразовательная школа №19 с углубленным изучением отдельных предметов\""]
[null,374,"261030_16207605443_30","Муниципальное бюджетное общеобразовательное учреждение \"Средняя общеобразовательная школа №30\" города Набережные Челны Республики Татарстан",16207605443,"Краснобаева","Вероника","Олеговна","ж","18.12.2007","нет",9,9,4,0,0,0,5,9,null,null,110,null,null,"Якунина Альбина Нуралиевна","Муниципальное бюджетное общеобразовательное учреждение \"Средняя общеобразовательная школа №30\" города Набережные Челны Республики Татарстан"]
[null,375,"261043_15885428923_30","Муниципальное бюджетное общеобразовательное учреждение «Средняя общеобразовательная школа №43»",15885428923,"Кабирова","Эльвина","Ильдаровна","ж","17..06.2008","нет",9,9,5,3,0,0,null,8,null,null,110,null,null,"Москалева Наталья Михайловна","Муниципальное бюджетное общеобразовательное учреждение «Средняя общеобразовательная школа №43»"]
[null,376,"261011_16205674856_30","Муниципальное бюджетное общеобразовательное учреждение «Средняя общеобразовательная школа № 11»",16205674856,"Ступникова","Малена","Андреевна","ж","09.06.2008","нет",9,9,4,2,1,0,0,7,null,null,110,null,null,"Хайруллина Раушания Рамилевна","Муниципальное бюджетное общеобразовательное учреждение «Средняя общеобразовательная школа № 11»"]
[null,377,"261056_16979337747_30","Муниципальное автономное общеобразовательное учреждение \"Средняя общеобразовательная школа №56\" г.Набережные Челны Республики Татарстан",16979337747,"Герасименко","Арсений","Романович","м","19.05.2007","нет",10,10,2,2,0,0,null,4,null,null,110,null,null,"Бадертдинова Ирина Петровна","Муниципальное автономное общеобразовательное учреждение \"Средняя общеобразовательная школа №56\" г.Набережные Челны Республики Татарстан"]